Workbook

Sheet リスト (hidden)
B2: リスト
B4: 公共工事等又は物品役務等の区分 | C4: 契約の相手方の区分 | D4: 一般競争入札・指名競争入札の別 | E4: 総合評価落札方式実施の別 | F4: 随意契約の区分 | G4: 随意契約の見直し | H4: 見直し実施年度 | I4: 一括調達形態
A5: 1 | B5: 公共工事等 | C5: 所管公益法人 | D5: 一般競争入札 | E5: 総合評価実施 | F5: 企画競争 | G5: 引き続き競争入札，企画競争又は公募を実施 | H5: 平成24年度 | I5: 近隣官署一括
A6: 2 | B6: 物品役務等 | C6: その他の公益法人 | D6: 指名競争入札 | E6: 価格競争 | F6: 公募 | G6: 事務・事業の中止 | H6: 平成25年度 | I6: 合同庁舎一括
A7: 3 | C7: 独立行政法人等 | F7: 不落・不調による随意契約 | G7: 競争入札に移行 | H7: 平成26年度以降 | I7: 管区一括
A8: 4 | C8: 特殊法人等 | F8: 契約の性質又は目的が競争を許さない場合 | G8: 企画競争に移行
A9: 5 | C9: 特定民間法人等 | F9: 緊急の必要により競争に付することができない場合 | G9: 公募に移行
A10: 6 | C10: その他の法人等 | F10: 競争に付することが不利と認められる場合 | G10: 随意契約によらざるを得ないもの
A11: 7 | F11: 特例政令に該当する場合
A12: 8 | F12: 秘密随意契約
A13: 9 | F13: 随意契約（その他）
A14: 10

Sheet 別表３
A1: 公共調達の適正化について（平成18年8月25日付財計第2017号）に基づく競争入札に係る情報の公表（物品役務等）
K2: 令和6年4月分
A3: No. | B3: 物品役務等の名称及び数量 | C3: 契約担当官等の氏名並びにその所属する部局の名称及び所在地 | D3: 契約を締結した日 | E3: 契約の相手方の商号又は名称及び住所 | F3: 法人番号 | G3: 一般競争入札・指名競争入札の別 (総合評価の実施) | H3: 予定価格 （円） （税込） | I3: 契約金額 （円） （税込） | J3: 落札率 (％) | K3: 備 考
A4: 1 | B4: 行政文書等運搬・処分業務委託契約 | C4: 支出負担行為担当官 東京出入国在留管理局長 宮尾 芳彰 （東京都港区港南5-5-30） | D4: 2024-04-01 | E4: 株式会社リパック 東京都文京区白山4-30-12 | F4: 1010001008461 | G4: 一般競争入札 | H4: 2492028 | I4: 2075 | J4: =IFERROR(ROUNDDOWN(I4/H4,3),"-") -> 0 | K4: 単価契約
A5: 2 | B5: 庁舎エレベーター保守業務委託 （鹿児島第2地方合同庁舎） | C5: 支出負担行為担当官 鹿児島地方法務局長 野見山 弘幸 （鹿児島県鹿児島市山下町13-10） | D5: 2024-04-01 | E5: 日本オーチス・エレベーター株式会社 福岡県福岡市博多区博多駅南1-2-13 | F5: 9010001075825 | G5: 一般競争入札 | H5: 45404 | I5: 14802 | J5: =IFERROR(ROUNDDOWN(I5/H5,3),"-") -> 0.326 | K5: 共同調達（【第十管区海上保安本部】、鹿児島地方気象台、自衛隊鹿児島地方協力本部、霧島錦江湾国立公園管理事務所、九州公安調査局、九州厚生局鹿児島事務所） 予定価格総額 3,468,000円 契約金額総額 1,129,920円
A6: 3 | B6: 令和6年度署所における電気工作物の保安管理業務委託契約（一式） | C6: 支出負担行為担当官 さいたま地方検察庁検事正 林 秀行 （埼玉県さいたま市浦和区高砂3-16-58） | D6: 2024-04-01 | E6: 株式会社電気管理協会 茨城県水戸市元石川町822-1 | F6: 6050001005764 | G6: 一般競争入札 | H6: 20231 | I6: 18876 | J6: =IFERROR(ROUNDDOWN(I6/H6,3),"-") -> 0.933 | K6: 一括調達【埼玉労働局】 予定価格総額 2,574,000円 契約金額総額 2,403,720円
A7: 4 | B7: 印刷用上質紙等購入 | C7: 支出負担行為担当官 金沢地方検察庁検事正 菱沼 洋 （石川県金沢市大手町6-15） | D7: 2024-04-01 | E7: 株式会社中島商店 石川県金沢市十間町8-1 | F7: 3220001004743 | G7: 一般競争入札 | H7: 57052 | I7: 39204 | J7: =IFERROR(ROUNDDOWN(I7/H7,3),"-") -> 0.687 | K7: 単価契約 共同調達（北陸総合通信局、北陸財務局、金沢国税局、国土地理院北陸地方測量部、福井労働局） 予定価格総額 4,961,154円 契約金額総額 3,390,387円
A8: 5 | B8: 神奈川労働局管内管理庁における消防設備保守点検業務委託契約 | C8: 支出負担行為担当官 横浜地方法務局長 鍛冶 宗宏 （神奈川県横浜市中区北仲通5-57） | D8: 2024-04-01 | E8: ヤマトエンジニアリング株式会社 東京都江東区東陽5-32-15 | F8: 4010401034765 | G8: 一般競争入札 | H8: 59507 | I8: 49368 | J8: =IFERROR(ROUNDDOWN(I8/H8,3),"-") -> 0.829 | K8: 共同調達（【神奈川労働局】） 予定価格総額 1,723,700円 契約金額総額 1,430,000円
A9: 6 | B9: 自家用電気工作物保安管理業務委託契約 | C9: 支出負担行為担当官 宮崎地方法務局長 河村 素子 （宮崎県宮崎市別府町1-1） | D9: 2024-04-01 | E9: 九州電気管理協同組合 福岡県福岡市博多区博多駅南1-8-12 | F9: 1290005003506 | G9: 一般競争入札 | H9: 73298 | I9: 61776 | J9: =IFERROR(ROUNDDOWN(I9/H9,3),"-") -> 0.842 | K9: 共同調達（【宮崎労働局】） 予定価格総額 1,707,169円 契約金額総額 1,438,800円
A10: 7 | B10: 神奈川労働局15施設における自家用電気工作物保安管理業務委託契約 | C10: 支出負担行為担当官 横浜地方法務局長 鍛冶 宗宏 （神奈川県横浜市中区北仲通5-57） | D10: 2024-04-01 | E10: 株式会社ハマ・メンテ 神奈川県横浜市瀬谷区下瀬谷3-49-7 | F10: 4020001045609 | G10: 一般競争入札 | H10: 83137 | I10: 75039 | J10: =IFERROR(ROUNDDOWN(I10/H10,3),"-") -> 0.902 | K10: 共同調達（【神奈川労働局】） 予定価格総額 3,957,429円 契約金額総額 3,571,920円
A11: 8 | B11: 令和6年度署所庁舎における機械警備業務委託契約（一式） | C11: 支出負担行為担当官 さいたま地方検察庁検事正 林 秀行 （埼玉県さいたま市浦和区高砂3-16-58） | D11: 2024-04-01 | E11: セコム株式会社 東京都渋谷区神宮前1-5-1 | F11: 6011001035920 | G11: 一般競争入札 | H11: 90514 | I11: 76560 | J11: =IFERROR(ROUNDDOWN(I11/H11,3),"-") -> 0.845 | K11: 一括調達【埼玉労働局】 予定価格総額 5,561,947円 契約金額総額 4,704,480円
A12: 9 | B12: 令和6年度東京地方裁判所民事執行部庁舎等自家用電気工作物保安管理委託業務 | C12: 支出負担行為担当官 東京地方検察庁検事正 山元 裕史 （東京都千代田区霞が関1-1-1） | D12: 2024-04-01 | E12: 株式会社ハマ・メンテ 神奈川県横浜市瀬谷区下瀬谷3-49-7 | F12: 4020001045609 | G12: 一般競争入札 | H12: - | I12: 84700 | J12: =IFERROR(ROUNDDOWN(I12/H12,3),"-") -> - | K12: 同種の他の契約の予定価格を類推されるおそれがあるため、予定価格を公表しない。 共同調達（【東京地方裁判所】） 契約金額総額 2,825,900円
A13: 10 | B13: 神奈川労働局内17官署における植栽管理業務委託契約 | C13: 支出負担行為担当官 横浜地方法務局長 鍛冶 宗宏 （神奈川県横浜市中区北仲通5-57） | D13: 2024-04-01 | E13: 生駒植木株式会社 神奈川県横浜市戸塚区小雀町1805 | F13: 6020001007061 | G13: 一般競争入札 | H13: 120471 | I13: 90991 | J13: =IFERROR(ROUNDDOWN(I13/H13,3),"-") -> 0.755 | K13: 共同調達（【神奈川労働局】） 予定価格総額 2,869,101円 契約金額総額 2,167,000円
A14: 11 | B14: 庁舎非常用発電機保守業務委託 （鹿児島第2地方合同庁舎） | C14: 支出負担行為担当官 鹿児島地方法務局長 野見山 弘幸 （鹿児島県鹿児島市山下町13-10） | D14: 2024-04-01 | E14: 株式会社明電エンジニアリング九州支店 福岡県福岡市博多区住吉5-5-3 | F14: 1010701028239 | G14: 一般競争入札 | H14: 130476 | I14: 109731 | J14: =IFERROR(ROUNDDOWN(I14/H14,3),"-") -> 0.841 | K14: 共同調達（【第十管区海上保安本部】、鹿児島地方気象台、自衛隊鹿児島地方協力本部、霧島錦江湾国立公園管理事務所、九州公安調査局、九州厚生局鹿児島事務所） 予定価格総額 2,131,000円 契約金額総額 1,793,000円
A15: 12 | B15: 令和6年度所沢地方合同庁舎の冷温水機保守点検業務委託契約（一式） | C15: 支出負担行為担当官 さいたま地方検察庁検事正 林 秀行 （埼玉県さいたま市浦和区高砂3-16-58） | D15: 2024-04-01 | E15: 日本ビルシステム株式会社 茨城県水戸市千波町1961-1 | F15: 1050001033299 | G15: 一般競争入札 | H15: 225280 | I15: 117216 | J15: =IFERROR(ROUNDDOWN(I15/H15,3),"-") -> 0.52 | K15: 一括調達【埼玉労働局】 予定価格総額 1,408,000円 契約金額総額 732,600円
A16: 13 | B16: 空調設備機器保守・点検業務委託契約 | C16: 支出負担行為担当官 宮崎地方法務局長 河村 素子 （宮崎県宮崎市別府町1-1） | D16: 2024-04-01 | E16: 株式会社栄建工業 宮崎県宮崎市大工町3-89-1 | F16: 6350001000198 | G16: 一般競争入札 | H16: 127722 | I16: 118000 | J16: =IFERROR(ROUNDDOWN(I16/H16,3),"-") -> 0.923 | K16: 共同調達（【宮崎労働局】） 予定価格総額 3,214,704円 契約金額総額 2,970,000円
A17: 14 | B17: 令和6年度埼玉労働局各官署の日常清掃業務委託契約（一式） | C17: 支出負担行為担当官 さいたま地方検察庁検事正 林 秀行 （埼玉県さいたま市浦和区高砂3-16-58） | D17: 2024-04-01 | E17: 株式会社レンディングヘルプサービス 群馬県高崎市上小鳥町195-2 | F17: 1070001008803 | G17: 一般競争入札 | H17: 183561 | I17: 161832 | J17: =IFERROR(ROUNDDOWN(I17/H17,3),"-") -> 0.881 | K17: 共同調達（【埼玉労働局】） 予定価格総額 16,449,903円 契約金額総額 14,502,576円
A18: 15 | B18: 令和6年度東京地方裁判所民事執行センターほか6庁舎構内植栽地の管理業務 | C18: 支出負担行為担当官 東京地方検察庁検事正 山元 裕史 （東京都千代田区霞が関1-1-1） | D18: 2024-04-01 | E18: 生駒植木株式会社 神奈川県横浜市戸塚区小雀町1805 | F18: 6020001007061 | G18: 一般競争入札 | H18: - | I18: 163350 | J18: =IFERROR(ROUNDDOWN(I18/H18,3),"-") -> - | K18: 同種の他の契約の予定価格を類推されるおそれがあるため、予定価格を公表しない。 共同調達（【東京地方裁判所】） 契約金額総額 5,995,000円
A19: 16 | B19: 神奈川労働局内11官署における環境衛生業務委託契約 | C19: 支出負担行為担当官 横浜地方法務局長 鍛冶 宗宏 （神奈川県横浜市中区北仲通5-57） | D19: 2024-04-01 | E19: 株式会社新東美装 東京都世田谷区上用賀4-3-8 | F19: 3010901005416 | G19: 一般競争入札 | H19: 180821 | I19: 174557 | J19: =IFERROR(ROUNDDOWN(I19/H19,3),"-") -> 0.965 | K19: 共同調達（【神奈川労働局】） 予定価格総額 2,841,850円 契約金額総額 2,743,400円
A20: 17 | B20: 清掃及び建築物環境衛生管理業務委託契約 | C20: 支出負担行為担当官 宮崎地方法務局長 河村 素子 （宮崎県宮崎市別府町1-1） | D20: 2024-04-01 | E20: 株式会社中央ビルファシリティーズ 宮崎県宮崎市錦町5-42 | F20: 7350001002788 | G20: 一般競争入札 | H20: 224168 | I20: 180268 | J20: =IFERROR(ROUNDDOWN(I20/H20,3),"-") -> 0.804 | K20: 共同調達（【宮崎労働局】） 予定価格総額 9,502,680円 契約金額総額 7,641,700円
A21: 18 | B21: 庁舎吸収式冷温水機保守業務委託 （鹿児島第2地方合同庁舎） | C21: 支出負担行為担当官 鹿児島地方法務局長 野見山 弘幸 （鹿児島県鹿児島市山下町13-10） | D21: 2024-04-01 | E21: 有限会社熊南空調システム 熊本県熊本市南区城南町丹生宮994-1 | F21: 4330002025446 | G21: 一般競争入札 | H21: 233270 | I21: 200613 | J21: =IFERROR(ROUNDDOWN(I21/H21,3),"-") -> 0.86 | K21: 共同調達（【第十管区海上保安本部】、鹿児島地方気象台、自衛隊鹿児島地方協力本部、霧島錦江湾国立公園管理事務所、九州公安調査局、九州厚生局鹿児島事務所） 予定価格総額 3,813,000円 契約金額総額 3,278,000円
A22: 19 | B22: 令和6年度東京労働局消防設備保守点検業務委託 | C22: 支出負担行為担当官 東京法務局長 山口 敬之 （東京都千代田区九段南1-1-15） | D22: 2024-04-01 | E22: 株式会社新東美装 東京都世田谷区上用賀4-3-8 | F22: 3010901005416 | G22: 一般競争入札 | H22: 358045 | I22: 224074 | J22: =IFERROR(ROUNDDOWN(I22/H22,3),"-") -> 0.625 | K22: 共同調達（独立行政法人高齢・障害・求職者雇用支援機構、東京地方検察庁、東京地方裁判所、【東京労働局】） 予定価格総額 5,207,126円 契約金額総額 3,278,000円
A23: 20 | B23: 自家用電気工作物保安管理業務 （鹿屋合同庁舎） | C23: 支出負担行為担当官 鹿児島地方法務局長 野見山 弘幸 （鹿児島県鹿児島市山下町13-10） | D23: 2024-04-01 | E23: 一般社団法人九州電気管理技術者協会 福岡県福岡市博多区博多駅南1-3-11 | F23: 2290005005261 | G23: 一般競争入札 | H23: - | I23: 229680 | J23: =IFERROR(ROUNDDOWN(I23/H23,3),"-") -> - | K23: 同種の他の契約の予定価格を類推されるおそれがあるため、予定価格を公表しない。 共同調達（【熊本国税局】、鹿児島労働局、九州農政局、自衛隊鹿児島地方協力本部、九州農政局、南部九州土地改良調査管理事務所） 契約金額総額 5,662,800円（税込）
A24: 21 | B24: 横須賀地方合同庁舎廃棄物処理業務請負契約 | C24: 支出負担行為担当官 横浜地方法務局長 鍛冶 宗宏 （神奈川県横浜市中区北仲通5-57） | D24: 2024-04-01 | E24: 株式会社マルコ 神奈川県横須賀市浦郷町5-2931-98 | F24: 3021001041144 | G24: 一般競争入札 | H24: - | I24: 236074 | J24: =IFERROR(ROUNDDOWN(I24/H24,3),"-") -> - | K24: 同種の他の契約の予定価格を推察されるおそれがあるため公表しない。 単価契約 共同調達（【関東財務局横浜財務事務所横須賀出張所】、横浜地方検察庁、神奈川労働局、東京国税局、南関東防衛局） 契約金額総額 966,328円
A25: 22 | B25: 令和6年度昇降機保守点検業務委託 | C25: 支出負担行為担当官 東京法務局長 山口 敬之 （東京都千代田区九段南1-1-15） | D25: 2024-04-01 | E25: エレベーターコミュニケーションズ株式会社 東京都品川区南大井6-16-16 | F25: 5010801017897 | G25: 一般競争入札 | H25: 398789 | I25: 258374 | J25: =IFERROR(ROUNDDOWN(I25/H25,3),"-") -> 0.647 | K25: 共同調達（【東京労働局】、独立行政法人高齢・障害・求職者雇用支援機構、東京地方検察庁） 予定価格総額 3,958,871円 契約金額総額 2,580,600円
A26: 23 | B26: 庁舎清掃業務委託契約 （鹿児島第2地方合同庁舎） | C26: 支出負担行為担当官 鹿児島地方法務局長 野見山 弘幸 （鹿児島県鹿児島市山下町13-10） | D26: 2024-04-01 | E26: 株式会社利光新陽サービス 鹿児島県鹿児島市城山町16-26 | F26: 2340001006679 | G26: 一般競争入札 | H26: 306000 | I26: 302940 | J26: =IFERROR(ROUNDDOWN(I26/H26,3),"-") -> 0.99 | K26: 共同調達（【第十管区海上保安本部】、鹿児島地方気象台、自衛隊鹿児島地方協力本部、霧島錦江湾国立公園管理事務所、九州公安調査局、九州厚生局鹿児島事務所） 予定価格総額 4,998,000円 契約金額総額 4,950,000円
A27: 24 | B27: 横浜港北地方合同庁舎外7施設における空調設備冷房切替保守点検業務委託契約 | C27: 支出負担行為担当官 横浜地方法務局長 鍛冶 宗宏 （神奈川県横浜市中区北仲通5-57） | D27: 2024-04-01 | E27: 株式会社AES 神奈川県相模原市南区新戸2688-32 | F27: 5021001057568 | G27: 一般競争入札 | H27: 381596 | I27: 306081 | J27: =IFERROR(ROUNDDOWN(I27/H27,3),"-") -> 0.802 | K27: 共同調達（【神奈川労働局】） 予定価格総額 6,966,663円 契約金額総額 5,588,000円
A28: 25 | B28: 下田地方合同庁舎における清掃等業務一式請負契約 | C28: 支出負担行為担当官代理 静岡地方法務局次長 髙橋 雅樹 （静岡県静岡市葵区追手町9-50） | D28: 2024-04-01 | E28: 株式会社MTS 東京都中央区日本橋蛎殻町1-17-2 | F28: 8010401124620 | G28: 一般競争入札 | H28: 438226 | I28: 326496 | J28: =IFERROR(ROUNDDOWN(I28/H28,3),"-") -> 0.745 | K28: 共同調達（静岡労働局、名古屋税関及び関東地方環境事務所） 予定価格総額 1,1741,613円 契約金額総額 675,600円
A29: 26 | B29: 旭川法務総合庁舎昇降機保守管理業務請負 | C29: 支出負担行為担当官 旭川地方検察庁検事正 上本 哲司 （北海道旭川市花咲町4） | D29: 2024-04-01 | E29: ジャパンエレベーターサービス北海道株式会社 北海道札幌市豊平区水車町6-3-1 | F29: 6430001068120 | G29: 一般競争入札 | H29: 1852552 | I29: 327360 | J29: =IFERROR(ROUNDDOWN(I29/H29,3),"-") -> 0.176
A30: 27 | B30: 令和6年度益田地方合同庁舎昇降機保守点検業務委託契約 | C30: 支出負担行為担当官 松江地方法務局長 西岡 典子 （島根県松江市東朝日町192-3） | D30: 2024-04-01 | E30: 日本オーチス・エレベータ株式会社中国支店 広島県広島市南区稲荷町4-1 | F30: 9010001075825 | G30: 一般競争入札 | H30: 350464 | I30: 330000 | J30: =IFERROR(ROUNDDOWN(I30/H30,3),"-") -> 0.941 | K30: 共同調達（島根労働局） 予定価格総額 1,051,394円 契約金額総額 990,000円
A31: 28 | B31: 令和6年度札幌矯正管区複写機賃貸契約 | C31: 支出負担行為担当官代理 札幌矯正管区第一部長 中間 篤則 （北海道札幌市東区東苗穂一条2-5-5） | D31: 2024-04-01 | E31: 株式会社ティ・エス・エス 北海道札幌市北区北34条西5-2-15 | F31: 3430001010729 | G31: 一般競争入札 | H31: 1157807 | I31: 350002 | J31: =IFERROR(ROUNDDOWN(I31/H31,3),"-") -> 0.302
A32: 29 | B32: 令和6年度東京労働局自家用電気工作物保安管理業務委託 | C32: 支出負担行為担当官 東京法務局長 山口 敬之 （東京都千代田区九段南1-1-15） | D32: 2024-04-01 | E32: 株式会社東京電気検査協会 東京都台東区浅草橋1-27-5 | F32: 2010501009355 | G32: 一般競争入札 | H32: 546342 | I32: 365130 | J32: =IFERROR(ROUNDDOWN(I32/H32,3),"-") -> 0.668 | K32: 共同調達（【東京労働局】、独立行政法人高齢・障害・求職者雇用支援機構、東京地方検察庁） 予定価格総額 3,958,871円 契約金額総額 2,580,600円
A33: 30 | B33: 令和6年度益田地方合同庁舎冷暖房設備保守業務委託契約 | C33: 支出負担行為担当官 松江地方法務局長 西岡 典子 （島根県松江市東朝日町192-3） | D33: 2024-04-01 | E33: 有限会社サンレイ空調 島根県益田市高津4-22-8 | F33: 7280002009955 | G33: 一般競争入札 | H33: 491559 | I33: 369258 | J33: =IFERROR(ROUNDDOWN(I33/H33,3),"-") -> 0.751 | K33: 共同調達（島根労働局） 予定価格総額 1,130,022円 契約金額総額 848,870円
A34: 31 | B34: 津合同庁舎ほか2庁舎昇降機保守点検業務委託契約 | C34: 支出負担行為担当官 津地方法務局長 坂 佳恭 （三重県津市丸之内26-8） | D34: 2024-04-01 | E34: ジャパンエレベーターサービス東海株式会社 愛知県名古屋市中区錦2-15-15 | F34: 8180001117173 | G34: 一般競争入札 | H34: 494183 | I34: 380746 | J34: =IFERROR(ROUNDDOWN(I34/H34,3),"-") -> 0.77 | K34: 共同調達（中部管区行政評価局、名古屋税関、東海北陸厚生局、三重労働局、自衛隊三重地方協力本部、名古屋国税局） 予定価格総額 1,161,600円 契約金額総額 894,960円
A35: 32 | B35: 令和6年度東京地方裁判所民事執行部庁舎等昇降機設備保守契約 | C35: 支出負担行為担当官 東京地方検察庁検事正 山元 裕史 （東京都千代田区霞が関1-1-1） | D35: 2024-04-01 | E35: ジャパンエレベーターサービスホールディングス株式会社 東京都中央区日本橋1-3-13 | F35: 5010001019182 | G35: 一般競争入札 | H35: - | I35: 392037 | J35: =IFERROR(ROUNDDOWN(I35/H35,3),"-") -> - | K35: 同種の他の契約の予定価格が類推されるおそれがあるため、予定価格は公表しない。 共同調達（【東京地方裁判所】） 契約金額総額 9,670,320円
A36: 33 | B36: 名古屋合同庁舎第1号館冷温水発生機保守点検業務請負契約 | C36: 支出負担行為担当官 名古屋法務局長 加藤 裕 （愛知県名古屋市中区三の丸2-2-1） | D36: 2024-04-01 | E36: 株式会社ライズテクノサービス 大阪府貝塚市橋本42-5 | F36: 2120101046531 | G36: 一般競争入札 | H36: 532263 | I36: 418132 | J36: =IFERROR(ROUNDDOWN(I36/H36,3),"-") -> 0.785 | K36: 共同調達（東海北陸厚生局、愛知労働局、中部運輸局、東海防衛支局） 予定価格総額 1,190,214円 契約金額総額 935,000円
A37: 34 | B37: 倉吉地方合同庁舎空気調和設備等機器保守点検業務委託契約 | C37: 支出負担行為担当官 鳥取地方法務局長 松村 亮 （鳥取県鳥取市東町2-302） | D37: 2024-04-01 | E37: 株式会社ウインズ 岡山県岡山市北区二日市町172 | F37: 1260001026406 | G37: 一般競争入札 | H37: 655243 | I37: 428846 | J37: =IFERROR(ROUNDDOWN(I37/H37,3),"-") -> 0.654 | K37: 共同調達（鳥取労働局、自衛隊鳥取地方協力本部） 予定価格総額 1,697,520円 契約金額総額 1,111,000円
A38: 35 | B38: 令和6年度益田地方合同庁舎清掃等業務委託契約 | C38: 支出負担行為担当官 松江地方法務局長 西岡 典子 （島根県松江市東朝日町192-3） | D38: 2024-04-01 | E38: 株式会社清・さやか 広島県広島市安佐北区あさひが丘3-18-6 | F38: 2240001020806 | G38: 一般競争入札 | H38: 547998 | I38: 444398 | J38: =IFERROR(ROUNDDOWN(I38/H38,3),"-") -> 0.81 | K38: 共同調達（島根労働局） 予定価格総額 1,444,916円 契約金額総額 1,188,000円
A39: 36 | B39: 令和6年度徳之島合同庁舎清掃業務契約 | C39: 支出負担行為担当官 鹿児島地方検察庁検事正 茂木 善樹 （鹿児島県鹿児島市山下町13-10） | D39: 2024-04-01 | E39: 株式会社美装福原 福岡県飯塚市立岩1309-1 | F39: 5290001070521 | G39: 一般競争入札 | H39: 554540 | I39: 448382 | J39: =IFERROR(ROUNDDOWN(I39/H39,3),"-") -> 0.808 | K39: 共同調達（【鹿児島労働局】、自衛隊鹿児島地方協力本部、日本司法支援センター） 予定価格総額 2,421,573円 契約金額総額 1,958,000円
A40: 37 | B40: 名古屋合同庁舎第1号館建築物環境衛生管理業務請負契約 | C40: 支出負担行為担当官 名古屋法務局長 加藤 裕 （愛知県名古屋市中区三の丸2-2-1） | D40: 2024-04-01 | E40: 株式会社ナショナルメンテナンス 滋賀県彦根市犬方町790 | F40: 9160001008547 | G40: 一般競争入札 | H40: 537734 | I40: 454625 | J40: =IFERROR(ROUNDDOWN(I40/H40,3),"-") -> 0.845 | K40: 共同調達（東海北陸厚生局、愛知労働局、中部運輸局、東海防衛支局） 予定価格総額 1,353,132円 契約金額総額 1,144,000円
A41: 38 | B41: 合同庁舎空調機保守管理業務委託契約 （種子島合同庁舎） | C41: 支出負担行為担当官 鹿児島地方法務局長 野見山 弘幸 （鹿児島県鹿児島市山下町13-10） | D41: 2024-04-01 | E41: 有限会社熊南空調システム 熊本県熊本市南区城南町丹生宮994-1 | F41: 4330002025446 | G41: 一般競争入札 | H41: - | I41: 458700 | J41: =IFERROR(ROUNDDOWN(I41/H41,3),"-") -> - | K41: 同種の他の契約の予定価格を類推されるおそれがあるため、予定価格を公表しない。 共同調達（【熊本国税局】、鹿児島地方検察庁、福岡管区気象台、鹿児島労働局、自衛隊鹿児島地方協力本部、鹿児島海上保安本部、九州防衛局、西之表港湾事務所） 契約金額総額 3,300,000円
A42: 39 | B42: 九段合同庁舎廃棄物処理業務一式 | C42: 支出負担行為担当官 東京地方検察庁検事正 山元 裕史 （東京都千代田区霞が関1-1-1） | D42: 2024-04-01 | E42: 広陽サービス株式会社 東京都江東区辰巳3-7-8 | F42: 8010001016251 | G42: 一般競争入札 | H42: 514840 | I42: 467970 | J42: =IFERROR(ROUNDDOWN(I42/H42,3),"-") -> 0.908 | K42: 単価契約 一括調達（関東公安調査局） 予定価格総額 1,139,279円 契約金額総額 1,035,562円
A43: 40 | B43: 昇降機・小荷物用昇降機保守点検委託契約 | C43: 支出負担行為担当官代理 鳥取刑務所総務部長 濱田 哲史 （鳥取県鳥取市下味野719） | D43: 2024-04-01 | E43: ジャパンエレベーターサービス中四国株式会社 広島県広島市中区東白島町10-17 | F43: 7240001059534 | G43: 一般競争入札 | H43: 2473548 | I43: 475200 | J43: =IFERROR(ROUNDDOWN(I43/H43,3),"-") -> 0.192
A44: 41 | B44: 令和6年度横手法務合同庁舎及び大曲法務合同庁舎清掃業務請負契約 | C44: 支出負担行為担当官 秋田地方検察庁検事正 藤本 治彦 （秋田県秋田市山王7-1-2） | D44: 2024-04-01 | E44: 有限会社県南ビルサービス 秋田県大仙市大曲金谷町20-4 | F44: 2410002012000 | G44: 一般競争入札 | H44: 491739 | I44: 485348 | J44: =IFERROR(ROUNDDOWN(I44/H44,3),"-") -> 0.987 | K44: 共同調達（東北農政局旭川農業水利事業所、自衛隊秋田地方協力本部、秋田労働局） 予定価格総額 1,005,114円 契約金額総額 991,320円
A45: 42 | B45: エレベーター設備保守管理業務委託契約 | C45: 支出負担行為担当官 福島地方法務局長 小松 淳也 （福島県福島市霞町1-46） | D45: 2024-04-01 | E45: 菱光リフト東北株式会社 宮城県仙台市青葉区北根3-26-6 | F45: 1370001001281 | G45: 一般競争入札 | H45: 821407 | I45: 488126 | J45: =IFERROR(ROUNDDOWN(I45/H45,3),"-") -> 0.594 | K45: 共同調達（東北管区行政評価局、東北厚生局、福島労働局、仙台出入国在留管理局、福島地方検察庁、東北農政局） 予定価格総額 1,066,208円 契約金額総額 633,600円
A46: 43 | B46: 令和6年度旭川刑務所及び名寄法務総合庁舎エレベータ保守点検業務委託契約 | C46: 支出負担行為担当官代理 旭川刑務所処遇部長 萱原 広智 （北海道旭川市東鷹栖3-20-620） | D46: 2024-04-01 | E46: ジャパンエレベーターサービス北海道株式会社 北海道札幌市豊平区水車町6-3-1 | F46: 6430001068120 | G46: 一般競争入札 | H46: 1214400 | I46: 501600 | J46: =IFERROR(ROUNDDOWN(I46/H46,3),"-") -> 0.413
A47: 44 | B47: 令和6年度福井春山合同庁舎塵芥物収集処理業務 | C47: 支出負担行為担当官 福井地方検察庁検事正 瀧澤 一弘 （福井県福井市春山1-1-54） | D47: 2024-04-01 | E47: 株式会社相互環境公社 福井県福井市角折町6-1 | F47: 5210001001822 | G47: 一般競争入札 | H47: - | I47: 535722 | J47: =IFERROR(ROUNDDOWN(I47/H47,3),"-") -> - | K47: 同種の他の契約の予定価格を類推されるおそれがあるため、予定価格を公表しない。 単価契約 共同調達（【北陸財務局】、福井地方法務局、名古屋出入国在留管理局、中部地方更生保護委員会、公安調査局、大阪税関、福井税務署、近畿厚生局、福井労働局、自衛隊福井地方協力本部、福井森林管理署） 令和5年度支払実績額総額 1,107,767円
A48: 45 | B48: 機械警備委託業務契約（青森第二合同庁舎・青森法務総合庁舎） | C48: 支出負担行為担当官代理 青森地方法務局次長 佐藤 純一 （青森県青森市長島1-3-5） | D48: 2024-04-01 | E48: セコム株式会社 東京都渋谷区神宮前1-5-1 | F48: 6011001035920 | G48: 一般競争入札 | H48: - | I48: 573506 | J48: =IFERROR(ROUNDDOWN(I48/H48,3),"-") -> - | K48: 同種の他の契約の予定価格を類推されるおそれがあるため、予定価格を公表しない。 共同調達（青森地方検察庁、仙台出入国在留管理局、東北地方更生保護委員会、東北公安調査局、【仙台国税局】、青森労働局、東北農政局、資源エネルギー庁、自衛隊青森地方協力本部） 契約金額総額 1,162,920円
A49: 46 | B49: 鳥取第二地方合同庁舎建築物環境衛生管理業務委託契約 | C49: 支出負担行為担当官 鳥取地方法務局長 松村 亮 （鳥取県鳥取市東町2-302） | D49: 2024-04-01 | E49: 株式会社オークスコーポレーション 岡山県岡山市南区豊浜町9-24 | F49: 1260001008585 | G49: 一般競争入札 | H49: 1341633 | I49: 622182 | J49: =IFERROR(ROUNDDOWN(I49/H49,3),"-") -> 0.463 | K49: 共同調達（自衛隊鳥取地方協力本部） 予定価格総額 1,565,499円 契約金額総額 726,000円
A50: 47 | B50: 令和6年度新潟刑務所等昇降機保守点検業務請負契約 | C50: 支出負担行為担当官 新潟刑務所長 吉川 和成 （新潟県新潟市江南区山二ツ381-4） | D50: 2024-04-01 | E50: ジャパンエレベーターサービス城西株式会社 東京都新宿区新宿6-29-8 | F50: 9011101072159 | G50: 一般競争入札 | H50: 2949936 | I50: 624360 | J50: =IFERROR(ROUNDDOWN(I50/H50,3),"-") -> 0.211
A51: 48 | B51: 松山法務総合庁舎等消防用設備保守点検業務 | C51: 支出負担行為担当官 松山地方検察庁検事正 西村 朗太 （愛媛県松山市一番町4-4-1） | D51: 2024-04-01 | E51: 東洋防災工業株式会社 徳島県徳島市川内町小松東75-13 | F51: 1480001001782 | G51: 一般競争入札 | H51: 1233100 | I51: 627000 | J51: =IFERROR(ROUNDDOWN(I51/H51,3),"-") -> 0.508 | K51: 一括調達（松山地方法務局、四国地方更生保護委員会、四国公安調査局）
A52: 49 | B52: 消防設備保守業務委託契約 | C52: 支出負担行為担当官 福島地方法務局長 小松 淳也 （福島県福島市霞町1-46） | D52: 2024-04-01 | E52: 常光サービス株式会社 福島県いわき市小名浜諏訪町11-1 | F52: 6380001013057 | G52: 一般競争入札 | H52: 1016996 | I52: 638059 | J52: =IFERROR(ROUNDDOWN(I52/H52,3),"-") -> 0.627 | K52: 共同調達（東北管区行政評価局、東北厚生局、福島労働局、仙台出入国在留管理局、福島地方検察庁、東北農政局、仙台国税局、原子力規制委員会） 予定価格総額 1,314,960円 契約金額総額 825,000円
A53: 50 | B53: 令和6年度文書廃棄処理業務に関する契約 | C53: 支出負担行為担当官 富山地方法務局長 栗原 久典 （富山県富山市牛島新町11-7） | D53: 2024-04-01 | E53: 株式会社ジェスコ 富山県富山市婦中町広田3978 | F53: 9230001003689 | G53: 一般競争入札 | H53: 736032 | I53: 642262 | J53: =IFERROR(ROUNDDOWN(I53/H53,3),"-") -> 0.872 | K53: 単価契約 共同調達（富山地方法務局、北陸財務局、富山労働局、国土地理院） 予定価格総額 1,564,083円 契約金額総額 1,331,225円
A54: 51 | B54: 供託金等払込警備輸送業務の委託 | C54: 支出負担行為担当官代理 静岡地方法務局次長 髙橋 雅樹 （静岡県静岡市葵区追手町9-50） | D54: 2024-04-01 | E54: 綜合警備保障株式会社 東京都港区元赤坂1-6-6 | F54: 3010401016070 | G54: 一般競争入札 | H54: 1601820 | I54: 660000 | J54: =IFERROR(ROUNDDOWN(I54/H54,3),"-") -> 0.412
A55: 52 | B55: 令和6年度高松法務合同庁舎樹木管理業務一式 | C55: 支出負担行為担当官代理 高松矯正管区第二部長 山口 賢治 （香川県高松市丸の内1-1） | D55: 2024-04-01 | E55: 株式会社イズミ 香川県高松市鬼無町鬼無97-3 | F55: 3470001000536 | G55: 一般競争入札 | H55: 1004300 | I55: 660000 | J55: =IFERROR(ROUNDDOWN(I55/H55,3),"-") -> 0.657 | K55: 一括調達（高松高等検察庁、高松地方検察庁、高松法務局、高松矯正管区、四国地方更生保護委員会、高松出入国在留管理局、四国公安調査局）
A56: 53 | B56: 敦賀地方合同庁舎空調設備保守点検契約 | C56: 支出負担行為担当官代理 福井地方法務局次長 関矢 庄司 （福井県福井市春山1-1-54） | D56: 2024-04-01 | E56: 株式会社柿本商会 石川県金沢市藤江南2-28 | F56: 6220001001754 | G56: 一般競争入札 | H56: 899081 | I56: 671260 | J56: =IFERROR(ROUNDDOWN(I56/H56,3),"-") -> 0.746 | K56: 共同調達（文部科学省、福井地方検察庁、資源エネルギー庁、東京管区気象台、農林水産省近畿中国森林管理局、国土交通省北陸整備局） 予定価格総額 1,458,600円 契約金額総額 1,089,000円
A57: 54 | B57: 宇部地方合同庁舎エレベーター保守業務請負契約 | C57: 支出負担行為担当官 山口地方法務局長 中島 仁志 （山口県山口市中河原町6-16） | D57: 2024-04-01 | E57: 日本オーチス・エレベータ株式会社 東京都中央区新川2-27-1 | F57: 9010001075825 | G57: 一般競争入札 | H57: 760314 | I57: 672543 | J57: =IFERROR(ROUNDDOWN(I57/H57,3),"-") -> 0.884 | K57: 共同調達（門司税関、広島検疫所、第七管区海上保安本部、山口労働局、中国地方整備局） 予定価格総額 2,193,637円 契約金額総額 1,940,400円
A58: 55 | B58: 横浜港北地方合同庁舎外5施設における警備業務委託 | C58: 支出負担行為担当官 横浜地方法務局長 鍛冶 宗宏 （神奈川県横浜市中区北仲通5-57） | D58: 2024-04-01 | E58: 株式会社イー・アール 茨城県牛久市牛久町279-1 | F58: 9050001053488 | G58: 一般競争入札 | H58: 827204 | I58: 679324 | J58: =IFERROR(ROUNDDOWN(I58/H58,3),"-") -> 0.821 | K58: 共同調達（【神奈川労働局】） 予定価格総額 20,090,489円 契約金額総額 16,498,892円
A59: 56 | B59: 須崎第2合同庁舎機械設備等保守管理契約業務 | C59: 支出負担行為担当官代理 高知地方法務局総務課長 岡村 幸治 （高知県高知市栄田町2-2-10） | D59: 2024-04-01 | E59: 株式会社ビル環境衛生管理 高知県高知市桟橋通3-23-10 | F59: 5490001001951 | G59: 一般競争入札 | H59: - | I59: 680608 | J59: =IFERROR(ROUNDDOWN(I59/H59,3),"-") -> - | K59: 同種の他の契約の予定価格を類推されるおそれがあるため、予定価格を公表しない。 共同調達（【高松国税局】、神戸税関、高知地方検察庁） 契約金額総額 2,145,000円
A60: 57 | B60: 静岡合同庁舎清掃等業務 | C60: 支出負担行為担当官代理 静岡地方法務局次長 髙橋 雅樹 （静岡県静岡市葵区追手町9-50） | D60: 2024-04-01 | E60: 株式会社静掃舎 静岡県静岡市葵区長沼3-8-29 | F60: 4080001010945 | G60: 一般競争入札 | H60: - | I60: 682000 | J60: =IFERROR(ROUNDDOWN(I60/H60,3),"-") -> - | K60: 同種の他の契約の予定価格を類推されるおそれがあるため、予定価格を公表しない。 共同調達（【東海財務局静岡財務事務所】、静岡行政監視行政相談センター、静岡労働局） 契約金額総額 5,720,000円
A61: 58 | B61: 令和6年度函館地方合同庁舎芝生及び樹木保守管理業務 | C61: 支出負担行為担当官代理 函館地方法務局次長 森山 昌弘 （北海道函館市新川町25-18） | D61: 2024-04-01 | E61: 共立管財株式会社北海道支社 北海道函館市美原1-18-10 | F61: 4020001026030 | G61: 一般競争入札 | H61: 754246 | I61: 683913 | J61: =IFERROR(ROUNDDOWN(I61/H61,3),"-") -> 0.906 | K61: 共同調達（函館行政監視行政相談センター、函館保護観察所、函館労働基準監督署、函館公共職業安定所、北海道農政事務所、北海道森林管理局函館事務所、自衛隊函館地方協力本部函館募集案内所） 予定価格総額 1,698,373円 契約金額総額 1,540,000円
A62: 59 | B62: 青森法務総合庁舎エレベーター保守業務 | C62: 支出負担行為担当官 青森地方検察庁検事正 宮地 裕美 （青森県青森市長島1-3-25） | D62: 2024-04-01 | E62: ジャパンエレベーターサービス城西株式会社 東京都新宿区新宿6-29-8 | F62: 9011101072159 | G62: 一般競争入札 | H62: 704121 | I62: 685591 | J62: =IFERROR(ROUNDDOWN(I62/H62,3),"-") -> 0.973 | K62: 共同調達（青森地方法務局、東北地方更生保護委員会、東北公安調査局、東北農政局） 予定価格総額 1,003,200円 契約金額総額 976,800円
A63: 60 | B63: 松阪地方合同庁舎駐車場等交通誘導業務委託契約 | C63: 支出負担行為担当官 津地方法務局長 坂 佳恭 （三重県津市丸之内26-8） | D63: 2024-04-01 | E63: 近畿ビルサービス株式会社 大阪府富田林市錦織北1-16-38 | F63: 1120101030783 | G63: 一般競争入札 | H63: 880653 | I63: 687089 | J63: =IFERROR(ROUNDDOWN(I63/H63,3),"-") -> 0.78 | K63: 単価契約 共同調達（名古屋国税局、三重労働局） 予定価格総額 3,014,904円 契約金額総額 2,352,240円
A64: 61 | B64: 宅配便配達業務契約 | C64: 支出負担行為担当官 和歌山地方法務局長 堤 秀昭 （和歌山県和歌山市二番丁3） | D64: 2024-04-01 | E64: ヤマト運輸株式会社 東京都中央区銀座2-16-10 | F64: 1010001092605 | G64: 一般競争入札 | H64: 1314588 | I64: 703593 | J64: =IFERROR(ROUNDDOWN(I64/H64,3),"-") -> 0.535 | K64: 単価契約
A65: 62 | B65: 令和6年度上半期翻訳・通訳派遣契約（英語、スペイン語、ポルトガル語） | C65: 支出負担行為担当官代理 和歌山刑務所総務部長 穗波 宏行 （和歌山県和歌山市加納383） | D65: 2024-04-01 | E65: 株式会社アクセライズ 東京都千代田区神田小川町1-5-1 | F65: 3011001068312 | G65: 一般競争入札 | H65: 1245360 | I65: 705408 | J65: =IFERROR(ROUNDDOWN(I65/H65,3),"-") -> 0.566 | K65: 単価契約
A66: 63 | B66: 供託金警備輸送業務一式 | C66: 支出負担行為担当官 宮崎地方法務局長 河村 素子 （宮崎県宮崎市別府町1-1） | D66: 2024-04-01 | E66: 株式会社にしけい 福岡県福岡市博多区店屋町5-10 | F66: 4290001009355 | G66: 一般競争入札 | H66: 1045440 | I66: 712800 | J66: =IFERROR(ROUNDDOWN(I66/H66,3),"-") -> 0.681
A67: 64 | B67: 令和6年度浜田法務合同庁舎、松江地方検察庁益田支部庁舎清掃及び環境衛生管理等業務委託契約 | C67: 支出負担行為担当官 松江地方検察庁検事正 加藤 雄三 （島根県松江市母衣町50） | D67: 2024-04-01 | E67: 北陽ビル管理株式会社 島根県松江市片原町62-1 | F67: 3280001000662 | G67: 一般競争入札 | H67: 1551000 | I67: 712800 | J67: =IFERROR(ROUNDDOWN(I67/H67,3),"-") -> 0.459 | K67: 一括調達（松江地方法務局）
A68: 65 | B68: 秋田合同庁舎ほか4庁舎自動ドア保守管理業務委託契約 | C68: 支出負担行為担当官 秋田地方法務局長 田中 直樹 （秋田県秋田市山王7-1-3） | D68: 2024-04-01 | E68: 株式会社タクト 秋田県大館市御成町2-17-10 | F68: 9410001006062 | G68: 一般競争入札 | H68: 933521 | I68: 714868 | J68: =IFERROR(ROUNDDOWN(I68/H68,3),"-") -> 0.765 | K68: 共同調達（秋田地方法務局、秋田行政監視行政相談センター、仙台出入国在留管理局、秋田労働局、東北農政局、自衛隊秋田地方協力本部、東北森林管理局秋田森林管理署） 予定価格総額 1,005,517円 契約金額総額 770,000円
A69: 66 | B69: 徳島地方合同庁舎事業系一般廃棄物回収処理及び産業廃棄物回収運搬業務 一式 | C69: 支出負担行為担当官 徳島地方法務局長 田中 和明 （徳島県徳島市徳島町城内6-6） | D69: 2024-04-01 | E69: 有限会社山岡清掃社 徳島県徳島市北島田町3-8-1 | F69: 6480002005035 | G69: 一般競争入札 | H69: 817709 | I69: 716225 | J69: =IFERROR(ROUNDDOWN(I69/H69,3),"-") -> 0.875 | K69: 共同調達（四国行政評価支局、四国地方更生保護委員会、徳島労働局） 予定価格 1,954,841円 契約金額総額 1,712,024円
A70: 67 | B70: 令和6年度産業廃棄物（木くず）収集運搬処分業務委託契約 | C70: 支出負担行為担当官代理 京都刑務所総務部長 小原 浩幸 （京都府京都市山科区東野井ノ上町20） | D70: 2024-04-01 | E70: 株式会社山本清掃 京都府京都市伏見区横大路千両松町196-1 | F70: 2130001011948 | G70: 一般競争入札 | H70: 1056000 | I70: 718080 | J70: =IFERROR(ROUNDDOWN(I70/H70,3),"-") -> 0.68
A71: 68 | B71: 鹿児島地方法務局行政文書等廃棄作業請負契約 | C71: 支出負担行為担当官 鹿児島地方法務局長 野見山 弘幸 （鹿児島県鹿児島市山下町13-10） | D71: 2024-04-01 | E71: 日本資源流通株式会社 福岡県北九州市小倉北区西港町86-13 | F71: 8290801002877 | G71: 一般競争入札 | H71: 1024172 | I71: 720720 | J71: =IFERROR(ROUNDDOWN(I71/H71,3),"-") -> 0.703 | K71: 単価契約
A72: 69 | B72: 仙台法務局塩竈支局庁舎ほか3庁舎エレベーター保守点検業務委託契約 | C72: 支出負担行為担当官 仙台法務局長 杉浦 直紀 （宮城県仙台市青葉区春日町7-25） | D72: 2024-04-01 | E72: ジャパンエレベーターサービス城西株式会社 東京都新宿区新宿6-29-8 | F72: 9011101072159 | G72: 一般競争入札 | H72: 736542 | I72: 721316 | J72: =IFERROR(ROUNDDOWN(I72/H72,3),"-") -> 0.979 | K72: 共同調達（仙台法務局、仙台地方検察庁、自衛隊宮城地方協力本部、名取市） 予定価格総額 998,025円 契約金額総額 976,800円
A73: 70 | B73: 津合同庁舎ほか4庁舎自家用電気工作物保安管理業務委託契約 | C73: 支出負担行為担当官 津地方法務局長 坂 佳恭 （三重県津市丸之内26-8） | D73: 2024-04-01 | E73: 株式会社鈴鹿テクト 三重県鈴鹿市矢橋3-4-12 | F73: 2190001005119 | G73: 一般競争入札 | H73: 952885 | I73: 747784 | J73: =IFERROR(ROUNDDOWN(I73/H73,3),"-") -> 0.784 | K73: 共同調達（中部管区行政評価局、名古屋税関、東海北陸厚生局、三重労働局、四日市港湾事務所、自衛隊三重地方協力本部、名古屋国税局、津地方検察庁） 予定価格総額 1,359,600円 契約金額総額 1,066,956円
A74: 71 | B74: 合同庁舎空調機保守管理業務（延岡合同庁舎） | C74: 支出負担行為担当官 宮崎地方法務局長 河村 素子 （宮崎県宮崎市別府町1-1） | D74: 2024-04-01 | E74: 株式会社クリル 長崎県佐世保市三浦町1-15 | F74: 6310001007718 | G74: 一般競争入札 | H74: - | I74: 751540 | J74: =IFERROR(ROUNDDOWN(I74/H74,3),"-") -> - | K74: 同種の他の契約の予定価格を類推されるおそれがあるため、予定価格を公表しない。 共同調達（【熊本国税局】、宮崎地方検察庁、自衛隊協力本部） 契約金額総額 1,749,000円
A75: 72 | B75: 令和6年度墨田合同庁舎・町田地方合同庁舎交通誘導業務委託 | C75: 支出負担行為担当官 東京法務局長 山口 敬之 （東京都千代田区九段南1-1-15） | D75: 2024-04-01 | E75: 東神産業株式会社 神奈川県横浜市神奈川区反町1-6-1 | F75: 8020001023833 | G75: 一般競争入札 | H75: 1414242 | I75: 752183 | J75: =IFERROR(ROUNDDOWN(I75/H75,3),"-") -> 0.531 | K75: 共同調達（独立行政法人高齢・障害・求職者雇用支援機構、東京地方検察庁、東京地方裁判所、【東京労働局】） 予定価格総額 9,418,862円 契約金額総額 5,014,548円
A76: 73 | B76: 自動車賃貸借契約 | C76: 支出負担行為担当官 広島地方検察庁検事正 勝山 浩嗣 （広島県広島市中区上八丁堀2-31） | D76: 2024-04-01 | E76: 株式会社日産カーレンタルソリューション九州中四国営業部 福岡県福岡市博多区博多駅東3-10-15 | F76: 4040001013464 | G76: 一般競争入札 | H76: 908622 | I76: 752235 | J76: =IFERROR(ROUNDDOWN(I76/H76,3),"-") -> 0.827 | K76: 単価契約 一括調達（広島高等検察庁）
A77: 74 | B77: 令和6年度高松出入国在留管理局浜ノ町分庁舎清掃業務請負契約 | C77: 支出負担行為担当官代理 高松出入国在留管理局監理官 山口 孝喜 （香川県高松市丸の内1-1） | D77: 2024-04-01 | E77: 株式会社こころん 香川県高松市牟礼町大町1068-7 | F77: 6480001011281 | G77: 一般競争入札 | H77: 1483124 | I77: 752400 | J77: =IFERROR(ROUNDDOWN(I77/H77,3),"-") -> 0.507
A78: 75 | B78: 植栽管理業務委託契約 | C78: 支出負担行為担当官 名古屋出入国在留管理局長 市村 信之 （愛知県名古屋市港区正保町5-18） | D78: 2024-04-01 | E78: 葵造園株式会社 愛知県岡崎市大樹寺3-12-11 | F78: 3180302000058 | G78: 一般競争入札 | H78: 1089000 | I78: 764500 | J78: =IFERROR(ROUNDDOWN(I78/H78,3),"-") -> 0.702
A79: 76 | B79: 令和6年度札幌地方検察庁歳入金警備搬送業務請負契約 | C79: 支出負担行為担当官 札幌地方検察庁検事正 木下 雅博 （北海道札幌市中央区大通西12） | D79: 2024-04-01 | E79: ライトコーポレーション合同会社 北海道札幌市清田区平岡2-4-3-5 | F79: 4430003008621 | G79: 一般競争入札 | H79: 1188000 | I79: 769846 | J79: =IFERROR(ROUNDDOWN(I79/H79,3),"-") -> 0.648
A80: 77 | B80: 千葉地方検察庁健康管理医請負業務 | C80: 支出負担行為担当官 千葉地方検察庁検事正 長谷川 保 （千葉県千葉市中央区中央4-11-1） | D80: 2024-04-01 | E80: 株式会社メディカルトラスト 東京都千代田区神田猿楽町1-5-18 | F80: 6011101034640 | G80: 一般競争入札 | H80: 1007600 | I80: 770000 | J80: =IFERROR(ROUNDDOWN(I80/H80,3),"-") -> 0.764 | K80: 単価契約
A81: 78 | B81: 旭川地方検察庁名寄支部機械警備業務委託 | C81: 支出負担行為担当官 旭川地方検察庁検事正 上本 哲司 （北海道旭川市花咲町4） | D81: 2024-04-01 | E81: 綜合警備保障株式会社 東京都港区元赤坂1-6-6 | F81: 3010401016070 | G81: 一般競争入札 | H81: 1234200 | I81: 785400 | J81: =IFERROR(ROUNDDOWN(I81/H81,3),"-") -> 0.636 | K81: 国庫債務負担行為
A82: 79 | B82: 令和6年度網走刑務所複写機賃貸借契約 | C82: 支出負担行為担当官 網走刑務所長 中村 寛之 （北海道網走市字三眺） | D82: 2024-04-01 | E82: 株式会社オフィスワン 北海道網走市新町1-1-8 | F82: 4460301003057 | G82: 一般競争入札 | H82: 875950 | I82: 787919 | J82: =IFERROR(ROUNDDOWN(I82/H82,3),"-") -> 0.899 | K82: 単価契約
A83: 80 | B83: 令和6年度供託金、保管金、小切手及び関係書類警備輸送業務委託契約 | C83: 支出負担行為担当官代理 神戸地方法務局次長 青木 清明 （兵庫県神戸市中央区波止場町1-1） | D83: 2024-04-01 | E83: 日本安全警備株式会社 兵庫県神戸市中央区京町71 | F83: 6140001020011 | G83: 一般競争入札 | H83: 1711469 | I83: 792000 | J83: =IFERROR(ROUNDDOWN(I83/H83,3),"-") -> 0.462
A84: 81 | B84: 盛岡地方法務局水沢支局エレベーター保守点検業務 一式 | C84: 支出負担行為担当官 盛岡地方法務局長 佐々木 賢 （岩手県盛岡市盛岡駅西通1-9-15） | D84: 2024-04-01 | E84: マックスエレベーター株式会社 岩手県盛岡市本町通3-18-8 | F84: 6400001004268 | G84: 一般競争入札 | H84: 1373328 | I84: 792000 | J84: =IFERROR(ROUNDDOWN(I84/H84,3),"-") -> 0.576 | K84: 再度公告入札 国庫債務負担行為
A85: 82 | B85: エレベータ等保守業務請負契約 | C85: 支出負担行為担当官 笠松刑務所長 齋藤 晶絵 （岐阜県羽島郡笠松町中川町23） | D85: 2024-04-01 | E85: マーキュリーエレベーター株式会社名古屋支社 愛知県名古屋市中村区則武2-29-26 | F85: 1340001001400 | G85: 一般競争入札 | H85: 1135200 | I85: 792000 | J85: =IFERROR(ROUNDDOWN(I85/H85,3),"-") -> 0.697
A86: 83 | B86: 令和6年度福岡刑務所産業廃棄物（木くず）収集運搬及び処分契約 | C86: 支出負担行為担当官代理 福岡刑務所処遇部長 長屋 栄治 （福岡県糟屋郡宇美町障子岳南6-1-1） | D86: 2024-04-01 | E86: 株式会社西興 福岡県福岡市博多区奈良屋町14-3 | F86: 7290001015524 | G86: 一般競争入札 | H86: 1049600 | I86: 792000 | J86: =IFERROR(ROUNDDOWN(I86/H86,3),"-") -> 0.754 | K86: 単価契約
A87: 84 | B87: 令和6年度上半期被収容者食料品（冷蔵・冷凍・生鮮品）供給契約（2品目） | C87: 支出負担行為担当官代理 鹿児島刑務所庶務課長 隈元 雄輔 （鹿児島県姶良郡湧水町中津川1733） | D87: 2024-04-01 | E87: 株式会社さかいだストアー 鹿児島県姶良郡湧水町川西748-1 | F87: - | G87: 一般競争入札 | H87: 2111400 | I87: 799000 | J87: =IFERROR(ROUNDDOWN(I87/H87,3),"-") -> 0.378 | K87: 単価契約
A88: 85 | B88: 令和6年度介護福祉士実務者研修業務請負契約 | C88: 支出負担行為担当官代理 川越少年刑務所処遇部長 本永 中 （埼玉県川越市南大塚6-40-1） | D88: 2024-04-01 | E88: セントスタッフ株式会社 東京都中央区日本橋茅場町1-8-3 | F88: 5010001066051 | G88: 一般競争入札 | H88: 1210000 | I88: 814240 | J88: =IFERROR(ROUNDDOWN(I88/H88,3),"-") -> 0.672
A89: 86 | B89: 熊本地方法務局阿蘇大津支局及び天草支局エレベーター保守契約 | C89: 支出負担行為担当官 熊本地方法務局長 林 健児 （熊本県熊本市中央区大江3-1-53） | D89: 2024-04-01 | E89: 株式会社信和エレベーター 福岡県大牟田市青葉町23-8-102 | F89: 9290001084344 | G89: 一般競争入札 | H89: 1074223 | I89: 818400 | J89: =IFERROR(ROUNDDOWN(I89/H89,3),"-") -> 0.761
A90: 87 | B90: 令和6年度那覇第一地方合同庁舎塵芥処理業務請負契約 | C90: 支出負担行為担当官 那覇地方検察庁検事正 内藤 惣一郎 （沖縄県那覇市樋川1-15-15） | D90: 2024-04-01 | E90: 友平衛生社有限会社 沖縄県豊見城市字金良99-4 | F90: 6360002003109 | G90: 一般競争入札 | H90: 1027804 | I90: 827466 | J90: =IFERROR(ROUNDDOWN(I90/H90,3),"-") -> 0.805 | K90: 共同調達（人事院、那覇地方法務局、九州地方更生保護委員会、福岡出入国在留管理局、九州公安調査局、九州厚生局沖縄分室、沖縄気象台、国土地理院沖縄支所、沖縄奄美自然環境事務所） 予定価格総額 1,623,190円 契約金額総額 1,306,800円
A91: 88 | B91: 令和6年度那覇第一地方合同庁舎環境衛生管理業務請負契約 | C91: 支出負担行為担当官 那覇地方検察庁検事正 内藤 惣一郎 （沖縄県那覇市樋川1-15-15） | D91: 2024-04-01 | E91: 株式会社エイト 東京都八王子市明神町3-20-5 | F91: 6010101000512 | G91: 一般競争入札 | H91: 1347034 | I91: 830972 | J91: =IFERROR(ROUNDDOWN(I91/H91,3),"-") -> 0.616 | K91: 共同調達（人事院、那覇地方法務局、九州地方更生保護委員会、福岡出入国在留管理局、九州公安調査局、九州厚生局沖縄分室、沖縄気象台、国土地理院沖縄支所、沖縄奄美自然環境事務所） 予定価格総額 2,136,200円 契約金額総額 1,317,800円
A92: 89 | B92: 札幌第3合同庁舎電話設備保守点検業務 | C92: 支出負担行為担当官 札幌高等検察庁検事長 山本 真千子 （北海道札幌市中央区大通西12） | D92: 2024-04-01 | E92: 扶桑電通株式会社北海道支店 北海道札幌市中央区北1条東1-6-5 | F92: 6010001055706 | G92: 一般競争入札 | H92: 855101 | I92: 837144 | J92: =IFERROR(ROUNDDOWN(I92/H92,3),"-") -> 0.979 | K92: 共同調達（人事院北海道事務局、公正取引委員会事務総局、北海道防衛局、北海道地方更生保護委員会、札幌出入国在留管理局、北海道公安調査局、札幌家庭裁判所） 予定価格総額 1,415,700円 契約金額総額 1,386,000円
A93: 90 | B93: 津法務総合庁舎ほか2庁舎建築物環境衛生管理業務委託契約 | C93: 支出負担行為担当官 津地方検察庁検事正 菊池 和史 （三重県津市中央3-12） | D93: 2024-04-01 | E93: 株式会社タクミサービス 京都府京都市左京区下鴨宮崎町1-26 | F93: 4130001061339 | G93: 一般競争入札 | H93: 1032071 | I93: 838200 | J93: =IFERROR(ROUNDDOWN(I93/H93,3),"-") -> 0.812 | K93: 一括調達（津地方法務局、中部地方更生保護委員会）
A94: 91 | B94: 東京地方裁判所民事執行センターほか4庁で使用するガス需給契約（都市ガス） | C94: 支出負担行為担当官 東京地方検察庁検事正 山元 裕史 （東京都千代田区霞が関1-1-1） | D94: 2024-04-01 | E94: 日本瓦斯株式会社 東京都渋谷区代々木4-31-8 | F94: 9010001061924 | G94: 一般競争入札 | H94: - | I94: 845157 | J94: =IFERROR(ROUNDDOWN(I94/H94,3),"-") -> - | K94: 同種の他の契約の予定価格を類推されるおそれがあるため、予定価格を公表しない。 単価契約 共同調達（【東京地方裁判所】） 契約金額総額 24,887,765円
A95: 92 | B95: 土佐山田及び中村地方合同庁舎における冷温水機保守点検業務委託契約 | C95: 支出負担行為担当官代理 高知地方法務局総務課長 岡村 幸治 （高知県高知市栄田町2-2-10） | D95: 2024-04-01 | E95: 荏原冷熱システム株式会社 東京都大田区羽田旭町11-1 | F95: 1010801013446 | G95: 一般競争入札 | H95: 857477 | I95: 849268 | J95: =IFERROR(ROUNDDOWN(I95/H95,3),"-") -> 0.99 | K95: 共同調達（高知労働局、中国四国農政局高知南国農地整備事業所、自衛隊高知地方協力本部） 予定価格総額 2,021,354円 契約金額総額 2,002,000円
A96: 93 | B96: 令和6年度東京労働局多摩地区内施設清掃業務委託 | C96: 支出負担行為担当官 東京法務局長 山口 敬之 （東京都千代田区九段南1-1-15） | D96: 2024-04-01 | E96: 株式会社M&S 神奈川県川崎市高津区久末676-1 | F96: 6020001101616 | G96: 一般競争入札 | H96: 1161395 | I96: 855381 | J96: =IFERROR(ROUNDDOWN(I96/H96,3),"-") -> 0.736 | K96: 共同調達（【東京労働局】、東京地方検察庁） 予定価格総額 14,912,632円 契約金額総額 11,000,000円
A97: 94 | B97: 法務総合研究所札幌支所庁舎機械警備業務請負契約 | C97: 支出負担行為担当官 札幌高等検察庁検事長 山本 真千子 （北海道札幌市中央区大通西12） | D97: 2024-04-01 | E97: 綜合警備保障株式会社北海道支社 北海道札幌市白石区菊水上町1条2-100 | F97: 3010401016070 | G97: 一般競争入札 | H97: 1156320 | I97: 858000 | J97: =IFERROR(ROUNDDOWN(I97/H97,3),"-") -> 0.742 | K97: 国庫債務負担行為
A98: 95 | B98: 横浜港北地方合同庁舎外4施設における清掃業務委託 | C98: 支出負担行為担当官 横浜地方法務局長 鍛冶 宗宏 （神奈川県横浜市中区北仲通5-57） | D98: 2024-04-01 | E98: 有限会社総合ビルメンテナンス 千葉県我孫子市南新木4-23-2 | F98: 1040002096420 | G98: 一般競争入札 | H98: 887572 | I98: 858691 | J98: =IFERROR(ROUNDDOWN(I98/H98,3),"-") -> 0.967 | K98: 共同調達（【神奈川労働局】） 予定価格総額 6,467,302円 契約金額総額 6,256,855円
A99: 96 | B99: 伊勢崎地方合同庁舎及び太田地方合同庁舎空調関連設備等保守点検業務 | C99: 支出負担行為担当官代理 前橋地方法務局総務課長 後藤 秀生 （群馬県前橋市大手町2-3-1） | D99: 2024-04-01 | E99: 株式会社FUJI 群馬県太田市西本町68-19 | F99: 7070001020793 | G99: 一般競争入札 | H99: 2073887 | I99: 866332 | J99: =IFERROR(ROUNDDOWN(I99/H99,3),"-") -> 0.417 | K99: 共同調達（群馬労働局総務部、自衛隊群馬地方協力本部） 予定価格総額 2,900,541円 契約金額総額 1,211,653円
A100: 97 | B100: 令和6年度長野法務総合庁舎ほか6庁舎建築物環境衛生管理等業務委託契約 | C100: 支出負担行為担当官 長野地方検察庁検事正 山﨑 耕史 （長野県長野市大字長野旭町1108） | D100: 2024-04-01 | E100: 伊那美装株式会社 長野県伊那市狐島3836-1 | F100: 5100001020800 | G100: 一般競争入札 | H100: 1119987 | I100: 875776 | J100: =IFERROR(ROUNDDOWN(I100/H100,3),"-") -> 0.781 | K100: 共同調達（長野地方法務局、関東地方更生保護委員会、関東公安調査局、【自衛隊長野地方協力本部】） 予定価格総額 1,124,211円 契約金額総額 880,000円
A101: 98 | B101: 令和6年度帯広刑務所臨床検査業務委託契約 | C101: 支出負担行為担当官 帯広刑務所長 𠮷川 英生 （北海道帯広市別府町南13線33） | D101: 2024-04-01 | E101: 株式会社第一岸本臨床検査センター 北海道札幌市東区伏古7-3-5-10 | F101: 1430001055197 | G101: 一般競争入札 | H101: 1576162 | I101: 878093 | J101: =IFERROR(ROUNDDOWN(I101/H101,3),"-") -> 0.557 | K101: 単価契約 一括調達（帯広刑務所、釧路刑務支所、札幌少年鑑別所釧路少年鑑別支所）
A102: 99 | B102: 自家用電気工作物保安管理業務委託契約 | C102: 支出負担行為担当官代理 徳島刑務所処遇部長 藤谷 宏二 （徳島県徳島市入田町大久200-1） | D102: 2024-04-01 | E102: 一般財団法人四国電気保安協会 徳島県徳島市南田宮1-3-51 | F102: 5470005005298 | G102: 一般競争入札 | H102: 1549680 | I102: 878460 | J102: =IFERROR(ROUNDDOWN(I102/H102,3),"-") -> 0.566
A103: 100 | B103: 令和6年度丸亀少女の家及び四国少年院一般廃棄物運搬処分業務契約 | C103: 支出負担行為担当官 丸亀少女の家長 筒井 千景 （香川県丸亀市中津町28） | D103: 2024-04-01 | E103: 株式会社パブリック 香川県観音寺市大野原町241-1 | F103: 6470001010846 | G103: 一般競争入札 | H103: 1479912 | I103: 879246 | J103: =IFERROR(ROUNDDOWN(I103/H103,3),"-") -> 0.594
A104: 101 | B104: 令和6年度血液検査及び細菌検査等業務委託契約（細菌検査） | C104: 支出負担行為担当官代理 三重刑務所総務部長 黒子 久雄 （三重県津市修成町16-1） | D104: 2024-04-01 | E104: 株式会社近畿予防医学研究所三重支店 三重県津市あのつ台4-6-6 | F104: 2160001000535 | G104: 一般競争入札 | H104: 1298000 | I104: 881700 | J104: =IFERROR(ROUNDDOWN(I104/H104,3),"-") -> 0.679 | K104: 単価契約
A105: 102 | B105: 遠隔操作監視カメラシステム賃貸借契約 | C105: 支出負担行為担当官 東京出入国在留管理局長 宮尾 芳彰 （東京都港区港南5-5-30） | D105: 2024-04-01 | E105: 株式会社ノビタス 神奈川県横浜市港北区新横浜3-17-5 | F105: 7020001055885 | G105: 一般競争入札 | H105: 970420 | I105: 882200 | J105: =IFERROR(ROUNDDOWN(I105/H105,3),"-") -> 0.909
A106: 103 | B106: 高松法務合同庁舎昇降機保守点検業務契約 | C106: 支出負担行為担当官代理 高松出入国在留管理局監理官 山口 孝喜 （香川県高松市丸の内1-1） | D106: 2024-04-01 | E106: エレベーターコミュニケーションズ株式会社 東京都品川区南大井6-16-16 | F106: 5010801017897 | G106: 一般競争入札 | H106: 2078274 | I106: 891000 | J106: =IFERROR(ROUNDDOWN(I106/H106,3),"-") -> 0.428 | K106: 一括調達（高松高等検察庁、高松地方検察庁、高松法務局、高松矯正管区、四国地方更生保護委員会、四国公安調査局）
A107: 104 | B107: 高松法務合同庁舎消防設備保守点検業務 | C107: 支出負担行為担当官 四国公安調査局長 太田 篤史 （香川県高松市丸の内1-1） | D107: 2024-04-01 | E107: 株式会社オークスコーポレーション 岡山県岡山市南区豊浜町9-24 | F107: 1260001008585 | G107: 一般競争入札 | H107: 1333860 | I107: 904200 | J107: =IFERROR(ROUNDDOWN(I107/H107,3),"-") -> 0.677 | K107: 一括調達（高松高等検察庁、高松法務局、高松矯正管区、四国地方更生保護委員会、高松出入国在留管理局、四国公安調査局）
A108: 105 | B108: 令和6年度産業廃棄物（廃プラスチック類）取集運搬処理業務委託契約 | C108: 前橋刑務所支出負担行為担当官代理 前橋刑務所処遇部長 工藤 英男 （群馬県前橋市南町1-23-7） | D108: 2024-04-01 | E108: 株式会社環境システムズ 群馬県高崎市倉賀野町2465-4 | F108: 8070001006503 | G108: 一般競争入札 | H108: 1342440 | I108: 912859 | J108: =IFERROR(ROUNDDOWN(I108/H108,3),"-") -> 0.679 | K108: 単価契約
A109: 106 | B109: 令和6年度消防用設備等保守点検業務 | C109: 支出負担行為担当官代理 神戸地方法務局次長 青木 清明 （兵庫県神戸市中央区波止場町1-1） | D109: 2024-04-01 | E109: 株式会社丹新ビルサービス 京都府福知山市東羽合町164 | F109: 2130001041160 | G109: 一般競争入札 | H109: 1333801 | I109: 917230 | J109: =IFERROR(ROUNDDOWN(I109/H109,3),"-") -> 0.687 | K109: 共同調達（第五管区海上保安本部、兵庫労働局、神戸地方検察庁、近畿地方更生保護委員会、自衛隊兵庫地方協力本部） 予定価格総額 1,518,000円 契約金額総額 1,043,900円
A110: 107 | B110: 鳥取地方法務局米子支局空気調和設備等機器保守点検業務委託契約 | C110: 支出負担行為担当官 鳥取地方法務局長 松村 亮 （鳥取県鳥取市東町2-302） | D110: 2024-04-01 | E110: 株式会社ティビィエム 鳥取県米子市目久美町34-2 | F110: 4270001003418 | G110: 一般競争入札 | H110: 2733500 | I110: 924000 | J110: =IFERROR(ROUNDDOWN(I110/H110,3),"-") -> 0.338
A111: 108 | B111: 冷暖房用燃料供給契約（下北合同庁舎） | C111: 支出負担行為担当官代理 青森地方法務局次長 佐藤 純一 （青森県青森市長島1-3-5） | D111: 2024-04-01 | E111: 株式会社タムラ 青森県むつ市小川町2-5-26 | F111: 9420001012720 | G111: 一般競争入札 | H111: - | I111: 927462 | J111: =IFERROR(ROUNDDOWN(I111/H111,3),"-") -> - | K111: 同種の他の契約の予定価格を類推されるおそれがあるため、予定価格を公表しない。 単価契約 共同調達（青森地方検察庁、【仙台国税局】、青森労働局、自衛隊青森地方協力本部） 契約金額総額 2,228,940円
A112: 109 | B112: 宮崎労働局管理9官署で使用する電力供給 | C112: 支出負担行為担当官 宮崎地方法務局長 河村 素子 （宮崎県宮崎市別府町1-1） | D112: 2024-04-01 | E112: RE100電力株式会社 東京都中央区日本橋2-9-10 | F112: 7470001015605 | G112: 一般競争入札 | H112: 1529150 | I112: 929196 | J112: =IFERROR(ROUNDDOWN(I112/H112,3),"-") -> 0.607 | K112: 単価契約 共同調達（【宮崎労働局】） 契約金額総額 15,074,923円
A113: 110 | B113: 荷物（書類等）集荷配送業務 | C113: 支出負担行為担当官 岐阜地方検察庁検事正 友添 太郎 （岐阜県岐阜市美江寺町2-8） | D113: 2024-04-01 | E113: 日本郵便株式会社岐阜中央郵便局 岐阜県岐阜市清住町1-3-2 | F113: 1010001112577 | G113: 一般競争入札 | H113: 1398830 | I113: 930344 | J113: =IFERROR(ROUNDDOWN(I113/H113,3),"-") -> 0.665 | K113: 単価契約
A114: 111 | B114: 令和6年度産業廃棄物収集処理業務委託契約 | C114: 支出負担行為担当官代理 札幌刑務所処遇部長 山縣 一光 （北海道札幌市東区東苗穂2-1-5-1） | D114: 2024-04-01 | E114: 合同会社ESG 北海道石狩市新港南3-703-34 | F114: 4430001058635 | G114: 一般競争入札 | H114: 1641200 | I114: 930600 | J114: =IFERROR(ROUNDDOWN(I114/H114,3),"-") -> 0.567
A115: 112 | B115: 冷暖房燃料油の単価契約 （第4グループ「鹿屋合同庁舎」） | C115: 支出負担行為担当官 鹿児島地方法務局長 野見山 弘幸 （鹿児島県鹿児島市山下町13-10） | D115: 2024-04-01 | E115: 有限会社松元石油ガス 鹿児島県肝属郡東串良町池之原904-1 | F115: 8340002026514 | G115: 一般競争入札 | H115: - | I115: 932822 | J115: =IFERROR(ROUNDDOWN(I115/H115,3),"-") -> - | K115: 同種の他の契約の予定価格を類推されるおそれがあるため、予定価格を公表しない。 単価契約 共同調達（【熊本国税局】、鹿児島労働局、九州農政局、自衛隊鹿児島地方協力本部、九州農政局、南部九州土地改良調査管理事務所） 契約金額総額 2,621,025円（税込）
A116: 113 | B116: 令和6年度秋田地方法務合同庁舎ほか4庁舎に係る環境衛生等管理業務請負契約 | C116: 支出負担行為担当官 秋田地方検察庁検事正 藤本 治彦 （秋田県秋田市山王7-1-2） | D116: 2024-04-01 | E116: 有限会社メンテックス 秋田県秋田市東通明田3-16 | F116: 4410002004466 | G116: 一般競争入札 | H116: 1524577 | I116: 933261 | J116: =IFERROR(ROUNDDOWN(I116/H116,3),"-") -> 0.612 | K116: 共同調達（東北地方更生保護委員会、秋田地方法務局、東北農政局旭川農業水利事業所、自衛隊秋田地方協力本部、秋田労働局、秋田港湾事務所） 予定価格総額 1,754,500円 契約金額総額 1,056,000円
A117: 114 | B117: 令和6年度鹿児島地方検察庁加治木支部ほか3庁舎清掃及びねずみ・昆虫等の防除業務委託契約 | C117: 支出負担行為担当官 鹿児島地方検察庁検事正 茂木 善樹 （鹿児島県鹿児島市山下町13-10） | D117: 2024-04-01 | E117: 株式会社美装福原 福岡県飯塚市立岩1309-1 | F117: 5290001070521 | G117: 一般競争入札 | H117: 1839010 | I117: 933900 | J117: =IFERROR(ROUNDDOWN(I117/H117,3),"-") -> 0.507
A118: 115 | B118: 令和6年度北見法務総合庁舎清掃業務請負契約 | C118: 支出負担行為担当官 釧路地方検察庁検事正 田中 知子 （北海道釧路市柏木町5-7） | D118: 2024-04-01 | E118: 北海美装興業株式会社 北海道北見市常盤町5-2-16 | F118: 6460301000911 | G118: 一般競争入札 | H118: 1352942 | I118: 939400 | J118: =IFERROR(ROUNDDOWN(I118/H118,3),"-") -> 0.694 | K118: 一括調達（北海道地方更生保護委員会）
A119: 116 | B119: 合同庁舎総合ビルメンテナンス業務委託契約 （グループ8種子島合同庁舎） | C119: 支出負担行為担当官 鹿児島地方法務局長 野見山 弘幸 （鹿児島県鹿児島市山下町13-10） | D119: 2024-04-01 | E119: 有限会社熊南空調システム 熊本県熊本市南区城南町丹生宮994-1 | F119: 4330002025446 | G119: 一般競争入札 | H119: - | I119: 943225 | J119: =IFERROR(ROUNDDOWN(I119/H119,3),"-") -> - | K119: 同種の他の契約の予定価格を類推されるおそれがあるため、予定価格を公表しない。 共同調達（【熊本国税局】、鹿児島地方検察庁、福岡管区気象台、鹿児島労働局、自衛隊鹿児島地方協力本部、鹿児島海上保安本部、九州防衛局、西之表港湾事務所） 契約金額総額 6,807,900円
A120: 117 | B120: 令和6年度網走刑務所複写機カウンター保守契約 | C120: 支出負担行為担当官 網走刑務所長 中村 寛之 （北海道網走市字三眺） | D120: 2024-04-01 | E120: 株式会社オフィスワン 北海道網走市新町1-1-8 | F120: 4460301003057 | G120: 一般競争入札 | H120: 1005092 | I120: 948200 | J120: =IFERROR(ROUNDDOWN(I120/H120,3),"-") -> 0.943 | K120: 単価契約
A121: 118 | B121: 千葉第2地方合同庁舎及び千葉地方検察庁南町分室一般廃棄物収集・運搬・処分業務 | C121: 支出負担行為担当官 千葉地方検察庁検事正 長谷川 保 （千葉県千葉市中央区中央4-11-1） | D121: 2024-04-01 | E121: 大西総業株式会社 千葉県千葉市若葉区源町566-7 | F121: 2040001001181 | G121: 一般競争入札 | H121: 1004190 | I121: 949196 | J121: =IFERROR(ROUNDDOWN(I121/H121,3),"-") -> 0.945 | K121: 単価契約 共同調達（千葉労働局、千葉労働基準監督署、千葉防衛事務所） 予定価格総額 1,684,926円 契約金額総額 1,592,652円
A122: 119 | B122: 令和6年度彦根地方合同庁舎駐車場警備業務委託 | C122: 支出負担行為担当官 大津地方法務局長 松尾 力実 （滋賀県大津市京町3-1-1） | D122: 2024-04-01 | E122: 株式会社トムソン 滋賀県大津市逢坂1-12-32 | F122: 8120001097215 | G122: 一般競争入札 | H122: 1006236 | I122: 952600 | J122: =IFERROR(ROUNDDOWN(I122/H122,3),"-") -> 0.946 | K122: 再度公告入札 共同調達（滋賀労働局） 予定価格総額 5,031,180円 契約金額総額 4,763,000円
A123: 120 | B123: 函館法務総合庁舎空気調和機自動制御装置保守管理業務 | C123: 支出負担行為担当官 函館地方検察庁検事正 秋元 豊 （北海道函館市上新川町1-13） | D123: 2024-04-01 | E123: 株式会社オーテック環境システム事業部北海道支店 北海道札幌市北区北33条西2-4-2 | F123: 8010601001272 | G123: 一般競争入札 | H123: 1057716 | I123: 954800 | J123: =IFERROR(ROUNDDOWN(I123/H123,3),"-") -> 0.902 | K123: 一括調達（北海道公安調査局）
A124: 121 | B124: 令和6年度空気調和設備定期点検保守業務委託 | C124: 支出負担行為担当官 静岡地方検察庁検事正 山田 英夫 （静岡県静岡市葵区追手町9-45） | D124: 2024-04-01 | E124: ヤマザキ・シー・エー株式会社 静岡県浜松市中央区上島2-19-20 | F124: 3080401005546 | G124: 一般競争入札 | H124: 1365100 | I124: 957000 | J124: =IFERROR(ROUNDDOWN(I124/H124,3),"-") -> 0.701
A125: 122 | B125: 薬物検査試薬（尿検査キット）の継続的調達 | C125: 支出負担行為担当官代理 近畿地方更生保護委員会事務局次長 西﨑 勝則 （大阪府大阪市中央区大手前4-1-76） | D125: 2024-04-01 | E125: 非営利活動法人アジア太平洋地域アディクション研究所 東京都新宿区余丁町14-4 | F125: 3010505001407 | G125: 一般競争入札 | H125: 1664116 | I125: 957000 | J125: =IFERROR(ROUNDDOWN(I125/H125,3),"-") -> 0.575 | K125: 単価契約
A126: 123 | B126: 福岡出入国在留管理局文書等廃棄作業請負契約 | C126: 支出負担行為担当官 福岡出入国在留管理局長 山﨑 浩一 （福岡県福岡市中央区舞鶴3-5-25） | D126: 2024-04-01 | E126: 株式会社紙資源 福岡県福岡市東区箱崎ふ頭4-1-37 | F126: 9290001002826 | G126: 一般競争入札 | H126: 1243094 | I126: 966850 | J126: =IFERROR(ROUNDDOWN(I126/H126,3),"-") -> 0.777 | K126: 単価契約
A127: 124 | B127: 令和6年度静岡地方検察庁及び静岡保護観察所におけるトナーカートリッジ等物品供給 | C127: 支出負担行為担当官 静岡地方検察庁検事正 山田 英夫 （静岡県静岡市葵区追手町9-45） | D127: 2024-04-01 | E127: 株式会社横山事務器 静岡県静岡市駿河区南町1-13 | F127: 8080001005537 | G127: 一般競争入札 | H127: 2361958 | I127: 970516 | J127: =IFERROR(ROUNDDOWN(I127/H127,3),"-") -> 0.41 | K127: 単価契約 一括調達（関東地方更生保護委員会）
A128: 125 | B128: 九段第2合同庁舎事業系一般廃棄物、産業廃棄物、古紙廃棄物収集運搬及び処分業務 | C128: 支出負担行為担当官 東京法務局長 山口 敬之 （東京都千代田区九段南1-1-15） | D128: 2024-04-01 | E128: 株式会社ハイシステム 東京都板橋区坂下3-4-1 | F128: 9011401013564 | G128: 一般競争入札 | H128: 981339 | I128: 973489 | J128: =IFERROR(ROUNDDOWN(I128/H128,3),"-") -> 0.992 | K128: 共同調達（東京法務局、麹町税務署、東京国税不服審判所、東京航空局、国土地理院関東地方測量部） 予定価格総額 2,766,672円 契約金額総額 2,746,865円
A129: 126 | B129: いわき法務総合庁舎清掃業務請負契約 | C129: 支出負担行為担当官 福島地方検察庁検事正 石井 隆 （福島県福島市狐塚17） | D129: 2024-04-01 | E129: 株式会社ビルエース 福島県福島市瀬上町字町裏6-1 | F129: 7380001012124 | G129: 一般競争入札 | H129: 1228700 | I129: 973500 | J129: =IFERROR(ROUNDDOWN(I129/H129,3),"-") -> 0.792 | K129: 一括調達（東北地方更生保護委員会）
A130: 127 | B130: 福島合同庁舎ほか4庁舎における自家用電気工作物保安管理業務委託契約 | C130: 支出負担行為担当官 福島地方法務局長 小松 淳也 （福島県福島市霞町1-46） | D130: 2024-04-01 | E130: 本田電気管理事務所 福島県本宮市仁井田字下ノ原28-71 | F130: - | G130: 一般競争入札 | H130: 1070088 | I130: 973849 | J130: =IFERROR(ROUNDDOWN(I130/H130,3),"-") -> 0.91 | K130: 共同調達（東北管区行政評価局、東北厚生局、福島労働局、仙台出入国在留管理局、福島地方検察庁、東北農政局） 予定価格総額 1,746,338円 契約金額総額 1,589,280円
A131: 128 | B131: 令和6年度事務用消耗品等供給契約（71品目） | C131: 支出負担行為担当官代理 松山刑務所総務部長 坂本 和総 （愛媛県東温市見奈良1243-2） | D131: 2024-04-01 | E131: 株式会社アサヒジム 愛媛県松山市本町2-6-8 | F131: 6500001000356 | G131: 一般競争入札 | H131: 3818411 | I131: 973972 | J131: =IFERROR(ROUNDDOWN(I131/H131,3),"-") -> 0.255
A132: 129 | B132: 九段第2合同庁舎入退館管理システム保守業務 | C132: 支出負担行為担当官 東京法務局長 山口 敬之 （東京都千代田区九段南1-1-15） | D132: 2024-04-01 | E132: 富士テレコム株式会社 東京都新宿区西新宿6-5-1 | F132: 6011401007346 | G132: 一般競争入札 | H132: 978229 | I132: 976273 | J132: =IFERROR(ROUNDDOWN(I132/H132,3),"-") -> 0.998 | K132: 共同調達（東京法務局、東京航空局） 予定価格総額 1,519,448円 契約金額総額 1,517,450円
A133: 130 | B133: 須崎第2合同庁舎清掃等委託業務 | C133: 支出負担行為担当官代理 高知地方法務局総務課長 岡村 幸治 （高知県高知市栄田町2-2-10） | D133: 2024-04-01 | E133: 有限会社よさこい管理 高知県高知市八反町1-4-22 | F133: 4490002002090 | G133: 一般競争入札 | H133: - | I133: 979160 | J133: =IFERROR(ROUNDDOWN(I133/H133,3),"-") -> - | K133: 同種の他の契約の予定価格を類推されるおそれがあるため、予定価格を公表しない。 共同調達（【高松国税局】、神戸税関、高知地方検察庁） 契約金額総額 2,686,200円
A134: 131 | B134: 令和6年度写真撮影等業務の請負 一式 | C134: 支出負担行為担当官 法務省大臣官房会計課長 村松 秀樹 （東京都千代田区霞が関1-1-1） | D134: 2024-04-01 | E134: 株式会社サイトウ写真 東京都千代田区永田町1-7-1 | F134: 9010001157771 | G134: 一般競争入札 | H134: 1004155 | I134: 979770 | J134: =IFERROR(ROUNDDOWN(I134/H134,3),"-") -> 0.975 | K134: 単価契約 一括調達（最高検察庁、出入国在留管理庁）
A135: 132 | B135: 令和6年度物品運送契約 | C135: 支出負担行為担当官 宇都宮地方法務局長 関口 正木 （栃木県宇都宮市小幡2-1-11） | D135: 2024-04-01 | E135: 日本郵便株式会社 東京都千代田区大手町2-3-1 | F135: 1010001112577 | G135: 一般競争入札 | H135: 1789261 | I135: 980430 | J135: =IFERROR(ROUNDDOWN(I135/H135,3),"-") -> 0.547 | K135: 単価契約
A136: 133 | B136: 立川第二法務総合庁舎廃棄物処理業務一式 | C136: 支出負担行為担当官 東京地方検察庁検事正 山元 裕史 （東京都千代田区霞が関1-1-1） | D136: 2024-04-01 | E136: 株式会社田邉商店 東京都立川市一番町5-5-1 | F136: 7012801004493 | G136: 一般競争入札 | H136: 1041493 | I136: 983400 | J136: =IFERROR(ROUNDDOWN(I136/H136,3),"-") -> 0.944 | K136: 単価契約 一括調達（関東地方更生保護委員会）
A137: 134 | B137: 複合機保守点検業務委託契約 | C137: 支出負担行為担当官 佐賀少年刑務所長 福田 篤史 （佐賀県佐賀市新生町2-1） | D137: 2024-04-01 | E137: リコージャパン株式会社販売事業本部佐賀支社 佐賀県佐賀市兵庫町瓦町四本松1082 | F137: 1010001110829 | G137: 一般競争入札 | H137: 1649050 | I137: 987100 | J137: =IFERROR(ROUNDDOWN(I137/H137,3),"-") -> 0.598 | K137: 単価契約
A138: 135 | B138: 旭川法務総合庁舎衛生的環境維持管理業務請負 | C138: 支出負担行為担当官 旭川地方検察庁検事正 上本 哲司 （北海道旭川市花咲町4） | D138: 2024-04-01 | E138: 環境衛生工業株式会社 北海道旭川市8-9左6 | F138: 8450001000780 | G138: 一般競争入札 | H138: 1040122 | I138: 987800 | J138: =IFERROR(ROUNDDOWN(I138/H138,3),"-") -> 0.949 | K138: 一括調達（北海道地方更生保護委員会）
A139: 136 | B139: 供託金警備輸送業務に係る委託契約 | C139: 支出負担行為担当官 熊本地方法務局長 林 健児 （熊本県熊本市中央区大江3-1-53） | D139: 2024-04-01 | E139: 株式会社にしけい 福岡県福岡市博多区店屋町5-10 | F139: 4290001009355 | G139: 一般競争入札 | H139: 1005048 | I139: 990000 | J139: =IFERROR(ROUNDDOWN(I139/H139,3),"-") -> 0.985
A140: 137 | B140: GNSSリアルタイム補正データ配信サービス契約 | C140: 支出負担行為担当官 仙台法務局長 杉浦 直紀 （宮城県仙台市青葉区春日町7-25） | D140: 2024-04-01 | E140: 日本GPSデータサービス株式会社 東京都品川区南大井6-26-3 | F140: 2010701023825 | G140: 一般競争入札 | H140: 1141250 | I140: 990000 | J140: =IFERROR(ROUNDDOWN(I140/H140,3),"-") -> 0.867
A141: 138 | B141: GNSSリアルタイム補正データ配信サービス契約 | C141: 支出負担行為担当官 福島地方法務局長 小松 淳也 （福島県福島市霞町1-46） | D141: 2024-04-01 | E141: 日本GPSデータサービス株式会社 東京都品川区南大井6-26-3 | F141: 2010701023825 | G141: 一般競争入札 | H141: 1350492 | I141: 990000 | J141: =IFERROR(ROUNDDOWN(I141/H141,3),"-") -> 0.733
A142: 139 | B142: 令和6年度月形刑務所フォークリフト運転科職業訓練委託契約 | C142: 支出負担行為担当官代理 月形刑務所分類教育部長 佐藤 栄一 （北海道樺戸郡月形町1011） | D142: 2024-04-01 | E142: 株式会社PCT 東京都千代田区丸の内1-8-3 | F142: 4010501032909 | G142: 一般競争入札 | H142: 1038351 | I142: 992006 | J142: =IFERROR(ROUNDDOWN(I142/H142,3),"-") -> 0.955 | K142: 単価契約
A143: 140 | B143: 令和6年度高松法務局丸亀支局ほか2庁エレベーター設備保守点検業務 | C143: 支出負担行為担当官 高松法務局長 古谷 剛司 （香川県高松市丸の内1-1） | D143: 2024-04-01 | E143: 日本エレベーター製造株式会社 東京都千代田区岩本町1-10-3 | F143: 8010001032926 | G143: 一般競争入札 | H143: 1004421 | I143: 992200 | J143: =IFERROR(ROUNDDOWN(I143/H143,3),"-") -> 0.987
A144: 141 | B144: 令和6年度産業廃棄物（混合）取集運搬処理業務委託契約 | C144: 前橋刑務所支出負担行為担当官代理 前橋刑務所処遇部長 工藤 英男 （群馬県前橋市南町1-23-7） | D144: 2024-04-01 | E144: 株式会社テシマ 群馬県前橋市富士見町小暮2295-13 | F144: 5070001002166 | G144: 一般競争入札 | H144: 1168200 | I144: 992970 | J144: =IFERROR(ROUNDDOWN(I144/H144,3),"-") -> 0.85 | K144: 単価契約
A145: 142 | B145: 庁舎警備業務委託契約 （鹿児島第2地方合同庁舎） | C145: 支出負担行為担当官 鹿児島地方法務局長 野見山 弘幸 （鹿児島県鹿児島市山下町13-10） | D145: 2024-04-01 | E145: 大成ビルサービス 鹿児島県鹿児島市樋之口町11-22 | F145: 9340001002531 | G145: 一般競争入札 | H145: 1103390 | I145: 995258 | J145: =IFERROR(ROUNDDOWN(I145/H145,3),"-") -> 0.902 | K145: 共同調達（【第十管区海上保安本部】、鹿児島地方気象台、自衛隊鹿児島地方協力本部、霧島錦江湾国立公園管理事務所、九州公安調査局、九州厚生局鹿児島事務所） 予定価格総額 18,020,000円 契約金額総額 16,262,400円
A146: 143 | B146: 供託金等警備搬送業務委託契約 | C146: 支出負担行為担当官 名古屋法務局長 加藤 裕 （愛知県名古屋市中区三の丸2-2-1） | D146: 2024-04-01 | E146: NXキャッシュ・ロジスティクス株式会社 東京都千代田区神田和泉町2 | F146: 5010001223230 | G146: 一般競争入札 | H146: 1661130 | I146: 997920 | J146: =IFERROR(ROUNDDOWN(I146/H146,3),"-") -> 0.6
A147: 144 | B147: 令和6年度面会・書信補助業務委託契約 | C147: 支出負担行為担当官代理 大阪拘置所総務部長 兒玉 秀隆 （大阪府大阪市都島区友渕町1-2-5） | D147: 2024-04-01 | E147: 株式会社アレスコ 大阪府大阪市淀川区十八条1-4-28-406 | F147: 5120001201869 | G147: 一般競争入札 | H147: 1060752 | I147: 999028 | J147: =IFERROR(ROUNDDOWN(I147/H147,3),"-") -> 0.941 | K147: 単価契約
A148: 145 | B148: 松山地方合同庁舎エレベーター設備保守点検業務一式 | C148: 支出負担行為担当官代理 松山地方法務局次長 杉本 美奈 （愛媛県松山市宮田町188-6） | D148: 2024-04-01 | E148: 株式会社日立ビルシステム四国支社 香川県高松市寿町1-3-2 | F148: 2010001027031 | G148: 一般競争入札 | H148: 1099614 | I148: 1000948 | J148: =IFERROR(ROUNDDOWN(I148/H148,3),"-") -> 0.91 | K148: 共同調達（中国四国農政局、高松出入国在留管理局、四国厚生支局、中国四国管区警察局） 予定価格総額 1,783,643円 契約金額総額 1,623,600円
A149: 146 | B149: 供託金等警備輸送業務委託契約 | C149: 支出負担行為担当官 新潟地方法務局長 相原 茂 （新潟県新潟市中央区西大畑町5191） | D149: 2024-04-01 | E149: NXキャッシュ・ロジスティクス株式会社 東京都千代田区神田和泉町2 | F149: 5010001223230 | G149: 一般競争入札 | H149: 1051015 | I149: 1003200 | J149: =IFERROR(ROUNDDOWN(I149/H149,3),"-") -> 0.954
A150: 147 | B150: 被収容者血液等検体検査 | C150: 支出負担行為担当官代理 岡山刑務総務部長 冨久 亮 （岡山県岡山市北区牟佐765） | D150: 2024-04-01 | E150: 株式会社岡山医学検査センター 岡山県倉敷市笹沖468-5 | F150: 3260001012783 | G150: 一般競争入札 | H150: 1003554 | I150: 1003554 | J150: =IFERROR(ROUNDDOWN(I150/H150,3),"-") -> 1
A151: 148 | B151: 令和6年度キャノン製複写機保守契約 | C151: 支出負担行為担当官 宇都宮地方法務局長 関口 正木 （栃木県宇都宮市小幡2-1-11） | D151: 2024-04-01 | E151: 関東マルワ産業株式会社 栃木県宇都宮市平出工業団地38-38 | F151: 5060001001169 | G151: 一般競争入札 | H151: 1003934 | I151: 1003934 | J151: =IFERROR(ROUNDDOWN(I151/H151,3),"-") -> 1 | K151: 単価契約
A152: 149 | B152: 令和6年度廃棄物処理請負業務契約（不燃物） | C152: 支出負担行為担当官代理 立川拘置所総務部長 都坂 圭吾 （東京都立川市泉町1156-11） | D152: 2024-04-01 | E152: 株式会社田邉商店 東京都立川市一番町5-5-1 | F152: 7012801004493 | G152: 一般競争入札 | H152: 1186900 | I152: 1004300 | J152: =IFERROR(ROUNDDOWN(I152/H152,3),"-") -> 0.846 | K152: 単価契約
A153: 150 | B153: 東京地方検察庁立川支部等における荷物の集荷配送業務に係る請負契約 | C153: 支出負担行為担当官 東京地方検察庁検事正 山元 裕史 （東京都千代田区霞が関1-1-1） | D153: 2024-04-01 | E153: セイノースーパーエクスプレス株式会社 東京都千代田区神田須田町2-6 | F153: 9010601041061 | G153: 一般競争入札 | H153: 1117723 | I153: 1008353 | J153: =IFERROR(ROUNDDOWN(I153/H153,3),"-") -> 0.902 | K153: 単価契約
A154: 151 | B154: 令和6年度佐賀県内矯正施設事務用品共同調達 | C154: 支出負担行為担当官 麓刑務所長 宮崎 勝也 （佐賀県鳥栖市山浦町2635） | D154: 2024-04-01 | E154: 堤紙業株式会社 佐賀県佐賀市卸本町7-2 | F154: 8300001000498 | G154: 一般競争入札 | H154: 1671380 | I154: 1009800 | J154: =IFERROR(ROUNDDOWN(I154/H154,3),"-") -> 0.604 | K154: 一括調達（麓刑務所、佐賀少年刑務所、佐賀少年鑑別所）
A155: 152 | B155: 令和6年度岐阜地方法務局美濃加茂支局空気調和設備保守点検業務委託契約 | C155: 支出負担行為担当官 岐阜地方法務局長 竹内 秀明 （岐阜県岐阜市金竜町5-13） | D155: 2024-04-01 | E155: 株式会社大西熱学 東京都墨田区緑1-19-9 | F155: 4010601030250 | G155: 一般競争入札 | H155: 1964470 | I155: 1012000 | J155: =IFERROR(ROUNDDOWN(I155/H155,3),"-") -> 0.515
A156: 153 | B156: 函館法務総合庁舎衛生的環境維持管理業務 | C156: 支出負担行為担当官 函館地方検察庁検事正 秋元 豊 （北海道函館市上新川町1-13） | D156: 2024-04-01 | E156: 株式会社丸文林商店 北海道函館市元町28-24 | F156: 7440003000236 | G156: 一般競争入札 | H156: 1760000 | I156: 1012000 | J156: =IFERROR(ROUNDDOWN(I156/H156,3),"-") -> 0.575 | K156: 一括調達（北海道公安調査局）
A157: 154 | B157: 長野地方法務局分室庁舎警備業務委託 | C157: 支出負担行為担当官 長野地方法務局長 谷田部 浩 （長野県長野市大字長野旭町1108） | D157: 2024-04-01 | E157: 株式会社Ultmate Security&Delight 長野県長野市大字鶴賀権堂町2201-23 | F157: 4100001034470 | G157: 一般競争入札 | H157: 1490145 | I157: 1014750 | J157: =IFERROR(ROUNDDOWN(I157/H157,3),"-") -> 0.68 | K157: 単価契約
A158: 155 | B158: トナーカートリッジ等供給契約（28品目） | C158: 支出負担行為担当官 関東公安調査局長 二上 英生 （東京都千代田区九段南1ｰ1ｰ10） | D158: 2024-04-01 | E158: 株式会社東京ディエスジャパン 東京都台東区柳橋2-16-20 | F158: 9010501009365 | G158: 一般競争入札 | H158: 1761485 | I158: 1015597 | J158: =IFERROR(ROUNDDOWN(I158/H158,3),"-") -> 0.576 | K158: 単価契約
A159: 156 | B159: 令和6年度那覇第一地方合同庁舎共用部分等除草剪定業務請負契約 | C159: 支出負担行為担当官 那覇地方検察庁検事正 内藤 惣一郎 （沖縄県那覇市樋川1-15-15） | D159: 2024-04-01 | E159: 株式会社琉球人材派遣センター 沖縄県沖縄市室川2-8-13 | F159: 5360001014801 | G159: 一般競争入札 | H159: 1172790 | I159: 1016916 | J159: =IFERROR(ROUNDDOWN(I159/H159,3),"-") -> 0.867 | K159: 共同調達（人事院、那覇地方法務局、九州地方更生保護委員会、福岡出入国在留管理局、九州公安調査局、九州厚生局沖縄分室、沖縄気象台、国土地理院沖縄支所、沖縄奄美自然環境事務所） 予定価格総額 2,435,730円 契約金額総額 2,112,000円
A160: 157 | B160: 小荷物等集荷配送業務委託 | C160: 支出負担行為担当官 金沢地方検察庁検事正 菱沼 洋 （石川県金沢市大手町6-15） | D160: 2024-04-01 | E160: ヤマト運輸株式会社金沢主管支店 石川県野々市市御経塚3-25 | F160: 1010001092605 | G160: 一般競争入札 | H160: 1412849 | I160: 1017753 | J160: =IFERROR(ROUNDDOWN(I160/H160,3),"-") -> 0.72 | K160: 単価契約 共同調達（金沢地方法務局、北陸財務局、中部公安調査局） 予定価格総額 1,606,614円 契約金額総額 1,156,496円
A161: 158 | B161: 登記事務システム用無停電電源装置保守点検業務委託 | C161: 支出負担行為担当官 長野地方法務局長 谷田部 浩 （長野県長野市大字長野旭町1108） | D161: 2024-04-01 | E161: 東芝インフラシステムズ株式会社 神奈川県川崎市幸区堀川町72-34 | F161: 2011101014084 | G161: 一般競争入札 | H161: 1059958 | I161: 1023000 | J161: =IFERROR(ROUNDDOWN(I161/H161,3),"-") -> 0.965
A162: 159 | B162: 供託金等警備輸送業務委託契約 | C162: 支出負担行為担当官代理 旭川地方法務局総務課長 野崎 和宏 （北海道旭川市宮前1条3-3-15） | D162: 2024-04-01 | E162: NXキャッシュ・ロジスティクス株式会社 東京都千代田区神田和泉町2 | F162: 5010001223230 | G162: 一般競争入札 | H162: 1026630 | I162: 1023000 | J162: =IFERROR(ROUNDDOWN(I162/H162,3),"-") -> 0.996
A163: 160 | B163: 令和6年度東京労働局23区内施設清掃業務委託 | C163: 支出負担行為担当官 東京法務局長 山口 敬之 （東京都千代田区九段南1-1-15） | D163: 2024-04-01 | E163: 株式会社ビー・エム・ヨコハマ 神奈川県横浜市中区長者町3-8-13 | F163: 4020001043257 | G163: 一般競争入札 | H163: 1540380 | I163: 1025523 | J163: =IFERROR(ROUNDDOWN(I163/H163,3),"-") -> 0.665 | K163: 共同調達（【東京労働局】、独立行政法人高齢・障害・求職者雇用支援機構） 予定価格総額 57,822,107円 契約金額総額 38,747,500円
A164: 161 | B164: 令和6年度長野・上田・松本法務総合庁舎に係る自家用電気工作物保安管理業務委託契約 | C164: 支出負担行為担当官 長野地方検察庁検事正 山﨑 耕史 （長野県長野市大字長野旭町1108） | D164: 2024-04-01 | E164: 一般財団法人中部電気保安協会長野支店 長野県長野市桐原1-5-8 | F164: 2180005014521 | G164: 一般競争入札 | H164: 1044606 | I164: 1028106 | J164: =IFERROR(ROUNDDOWN(I164/H164,3),"-") -> 0.984 | K164: 共同調達（【自衛隊長野地方協力本部】、長野地方法務局、関東地方更生保護委員会、関東公安調査局） 予定価格総額 1,087,020円 契約金額総額 1,070,520円
A165: 162 | B165: 令和6年度供託金警備輸送業務委託契約 | C165: 支出負担行為担当官代理 函館地方法務局次長 森山 昌弘 （北海道函館市新川町25-18） | D165: 2024-04-01 | E165: 綜合警備保障株式会社北海道支社 北海道札幌市白石区菊水上町1-2-100 | F165: 3010401016070 | G165: 一般競争入札 | H165: 1410868 | I165: 1029600 | J165: =IFERROR(ROUNDDOWN(I165/H165,3),"-") -> 0.729
A166: 163 | B166: 名古屋出入国在留管理局中部空港支局寝具等クリーニングに係る請負契約 | C166: 支出負担行為担当官 名古屋出入国在留管理局長 市村 信之 （愛知県名古屋市港区正保町5-18） | D166: 2024-04-01 | E166: 株式会社セントラル商会 愛知県名古屋市中区丸の内2-2-25 | F166: 8180001037314 | G166: 一般競争入札 | H166: 1300392 | I166: 1031305 | J166: =IFERROR(ROUNDDOWN(I166/H166,3),"-") -> 0.793 | K166: 単価契約
A167: 164 | B167: 令和6年度物品運送契約 | C167: 支出負担行為担当官 広島法務局長 篠原 辰夫 （広島県広島市中区上八丁堀6-30） | D167: 2024-04-01 | E167: 福山通運株式会社 広島県福山市東深津町4-20-1 | F167: 1240001032736 | G167: 一般競争入札 | H167: 1250700 | I167: 1031470 | J167: =IFERROR(ROUNDDOWN(I167/H167,3),"-") -> 0.824 | K167: 単価契約
A168: 165 | B168: 令和6年度高松法務合同庁舎塵芥処理業務 | C168: 支出負担行為担当官 高松法務局長 古谷 剛司 （香川県高松市丸の内1-1） | D168: 2024-04-01 | E168: 有限会社ヨシモト・トレーディングカンパニー 香川県高松市塩江町安原下3-584-1 | F168: 4470002009212 | G168: 一般競争入札 | H168: 1038391 | I168: 1033274 | J168: =IFERROR(ROUNDDOWN(I168/H168,3),"-") -> 0.995 | K168: 一括調達（高松高等検察庁、高松地方検察庁、高松矯正管区、四国地方更生保護委員会、高松出入国在留管理局、四国公安調査局）
A169: 166 | B169: 庁舎清掃業務委託 | C169: 支出負担行為担当官 鳥取地方検察庁検事正 杉山 徳明 （鳥取県鳥取市西町3-201） | D169: 2024-04-01 | E169: 株式会社エヌイーティー 岡山県岡山市北区奥田1-5-30 | F169: 9260002007620 | G169: 一般競争入札 | H169: 1062160 | I169: 1036200 | J169: =IFERROR(ROUNDDOWN(I169/H169,3),"-") -> 0.975
A170: 167 | B170: 令和6年度名古屋刑務所等ボイラー等点検整備及び性能検査業務委託契約（8基） | C170: 支出負担行為担当官代理 名古屋刑務所総務部調査官 澤田 好生 （愛知県みよし市ひばりヶ丘1-1） | D170: 2024-04-01 | E170: 株式会社ヒラカワ 大阪府大阪市北区大淀北1-9-5 | F170: 6120001069538 | G170: 一般競争入札 | H170: 1726560 | I170: 1037300 | J170: =IFERROR(ROUNDDOWN(I170/H170,3),"-") -> 0.6
A171: 168 | B171: 令和6年度東京労働局海岸庁舎外11施設機械警備保安業務委託 | C171: 支出負担行為担当官 東京法務局長 山口 敬之 （東京都千代田区九段南1-1-15） | D171: 2024-04-01 | E171: 綜合警備保障株式会社 東京都港区元赤坂1-6-6 | F171: 3010401016070 | G171: 一般競争入札 | H171: 1096366 | I171: 1038240 | J171: =IFERROR(ROUNDDOWN(I171/H171,3),"-") -> 0.946 | K171: 共同調達（【東京労働局】、東京地方検察庁） 予定価格総額 9,464,400円 契約金額総額 8,989,200円
A172: 169 | B172: 令和6年度網走刑務所第2回複写機カウンター保守契約 | C172: 支出負担行為担当官 網走刑務所長 中村 寛之 （北海道網走市字三眺） | D172: 2024-04-01 | E172: 小林株式会社 北海道網走市桂町5-3-1 | F172: 5460301003139 | G172: 一般競争入札 | H172: 1102511 | I172: 1040105 | J172: =IFERROR(ROUNDDOWN(I172/H172,3),"-") -> 0.943 | K172: 単価契約
A173: 170 | B173: 令和6年度九段合同庁舎植栽維持管理業務一式 | C173: 支出負担行為担当官 東京地方検察庁検事正 山元 裕史 （東京都千代田区霞が関1-1-1） | D173: 2024-04-01 | E173: 株式会社辰巳 東京都豊島区池袋本町2-29-16-101 | F173: 6013301007186 | G173: 一般競争入札 | H173: 2025986 | I173: 1042250 | J173: =IFERROR(ROUNDDOWN(I173/H173,3),"-") -> 0.514 | K173: 一括調達（関東公安調査局）
A174: 171 | B174: 令和6年度複写機保守点検契約（コニカミノルタ製複写機4台） | C174: 支出負担行為担当官代理 立川拘置所総務部長 都坂 圭吾 （東京都立川市泉町1156-11） | D174: 2024-04-01 | E174: 株式会社タイチ 東京都渋谷区渋谷区宇田川町33-7 | F174: 9011001013213 | G174: 一般競争入札 | H174: 1071444 | I174: 1049070 | J174: =IFERROR(ROUNDDOWN(I174/H174,3),"-") -> 0.979 | K174: 単価契約 再度公告入札
A175: 172 | B175: 下妻支局冷暖房用プロパンガス供給契約 | C175: 支出負担行為担当官 水戸地方法務局長 田中 徹 （茨城県水戸市北見町1-1） | D175: 2024-04-01 | E175: 株式会社エルピオ 千葉県市川市曽谷1-30-18 | F175: 4040001026540 | G175: 一般競争入札 | H175: 1136960 | I175: 1049180 | J175: =IFERROR(ROUNDDOWN(I175/H175,3),"-") -> 0.922 | K175: 単価契約
A176: 173 | B176: 産業廃棄物（粗大ごみ）の処理業務委託契約 | C176: 支出負担行為担当官 東日本成人矯正医療センター長 奥村 雄介 （東京都昭島市もくせいの杜2-1-9） | D176: 2024-04-01 | E176: 株式会社まごころ清掃社 東京都八王子市長房町126-2 | F176: 5010101006832 | G176: 一般競争入札 | H176: 1137708 | I176: 1050192 | J176: =IFERROR(ROUNDDOWN(I176/H176,3),"-") -> 0.923 | K176: 単価契約
A177: 174 | B177: 仙台法務局塩竈支局庁舎ほか5庁舎自家用電気工作物保安管理業務委託契約 | C177: 支出負担行為担当官 仙台法務局長 杉浦 直紀 （宮城県仙台市青葉区春日町7-25） | D177: 2024-04-01 | E177: 株式会社トーショウビルサービス 北海道函館市中道1-1-12 | F177: 2440001001356 | G177: 一般競争入札 | H177: 1074982 | I177: 1050792 | J177: =IFERROR(ROUNDDOWN(I177/H177,3),"-") -> 0.977 | K177: 共同調達（仙台法務局、仙台地方検察庁、自衛隊宮城地方協力本部、名取市） 予定価格総額 1,296,721円 契約金額総額 1,267,200円
A178: 175 | B178: 輪島地方合同庁舎清掃等業務委託 | C178: 支出負担行為担当官 金沢地方法務局長 石田 正信 （石川県金沢市新神田4-3-10） | D178: 2024-04-01 | E178: 有限会社グリター企画 石川県金沢市若宮町ホ4-4 | F178: 3220002002366 | G178: 一般競争入札 | H178: 1066391 | I178: 1051771 | J178: =IFERROR(ROUNDDOWN(I178/H178,3),"-") -> 0.986 | K178: 共同調達（石川労働局、北陸地方整備局） 予定価格総額 2,398,000円 契約金額総額 2,365,000円
A179: 176 | B179: 令和6年度供託金等警備輸送業務委託契約 | C179: 支出負担行為担当官 宇都宮地方法務局長 関口 正木 （栃木県宇都宮市小幡2-1-11） | D179: 2024-04-01 | E179: 北関東綜合警備保障株式会社 栃木県宇都宮市不動前1-3-14 | F179: 9060001001355 | G179: 一般競争入札 | H179: 1056000 | I179: 1056000 | J179: =IFERROR(ROUNDDOWN(I179/H179,3),"-") -> 1
A180: 177 | B180: 令和6年度一宮法務合同庁舎昇降機設備保守点検業務委託契約 | C180: 支出負担行為担当官 名古屋地方検察庁検事正 加藤 俊治 （愛知県名古屋市中区三の丸4-3-1） | D180: 2024-04-01 | E180: ジャパンエレベーターサービス東海株式会社 愛知県名古屋市中区錦2-15-15 | F180: 8180001117173 | G180: 一般競争入札 | H180: 1452000 | I180: 1056000 | J180: =IFERROR(ROUNDDOWN(I180/H180,3),"-") -> 0.727 | K180: 一括調達（名古屋法務局）
A181: 178 | B181: 自動裁断機CAMシステム保守契約 | C181: 支出負担行為担当官代理 京都刑務所総務部長 小原 浩幸 （京都府京都市山科区東野井ノ上町20） | D181: 2024-04-01 | E181: 大三商会株式会社 大阪府吹田市垂水町3-6-17 | F181: 3120901014257 | G181: 一般競争入札 | H181: 1188000 | I181: 1056000 | J181: =IFERROR(ROUNDDOWN(I181/H181,3),"-") -> 0.888
A182: 179 | B182: 令和6年度上半期給食用食材供給契約（22品目） | C182: 支出負担行為担当官代理 多摩少年院次長 根岸 正樹 （東京都八王子市緑町670） | D182: 2024-04-01 | E182: 株式会社名給 愛知県名古屋市熱田区新尾頭2-2-61 | F182: 5180001022946 | G182: 一般競争入札 | H182: 2015570 | I182: 1057730.4 | J182: =IFERROR(ROUNDDOWN(I182/H182,3),"-") -> 0.524 | K182: 単価契約
A183: 180 | B183: 事務系一般廃棄物（剪定枝等）収集運搬委託業務契約 | C183: 支出負担行為担当官代理 加古川刑務所分類教育部長 小山 佐知子 （兵庫県加古川市加古川町大野1530） | D183: 2024-04-01 | E183: 株式会社アルファ 兵庫県加古川市志方町上冨木512-6 | F183: 9140001042465 | G183: 一般競争入札 | H183: 1108800 | I183: 1059520 | J183: =IFERROR(ROUNDDOWN(I183/H183,3),"-") -> 0.955 | K183: 単価契約
A184: 181 | B184: 一般貨物自動車運送業務契約 | C184: 支出負担行為担当官代理 前橋地方法務局総務課長 後藤 秀生 （群馬県前橋市大手町2-3-1） | D184: 2024-04-01 | E184: 日本郵便株式会社 東京都千代田区大手町2-3-1 | F184: 1010001112577 | G184: 一般競争入札 | H184: 1227479 | I184: 1060037 | J184: =IFERROR(ROUNDDOWN(I184/H184,3),"-") -> 0.863 | K184: 単価契約
A185: 182 | B185: 松山法務総合庁舎昇降機保守点検業務 | C185: 支出負担行為担当官 松山地方検察庁検事正 西村 朗太 （愛媛県松山市一番町4-4-1） | D185: 2024-04-01 | E185: 鹿島建物総合管理株式会社 東京都中央区銀座6-17-1 | F185: 2011101047571 | G185: 一般競争入札 | H185: 1188000 | I185: 1062600 | J185: =IFERROR(ROUNDDOWN(I185/H185,3),"-") -> 0.894 | K185: 一括調達（松山地方法務局、四国地方更生保護委員会、四国公安調査局）
A186: 183 | B186: 令和6年度武蔵野区検察庁日常清掃業務一式 | C186: 支出負担行為担当官 東京地方検察庁検事正 山元 裕史 （東京都千代田区霞が関1-1-1） | D186: 2024-04-01 | E186: 株式会社ラグーナマネージメント 新潟県新潟市中央区西堀通5番町855-5 | F186: 6110001033395 | G186: 一般競争入札 | H186: 1367446 | I186: 1063150 | J186: =IFERROR(ROUNDDOWN(I186/H186,3),"-") -> 0.777
A187: 184 | B187: 鹿児島第2地方合同庁舎ほか11カ所で使用する電気契約 | C187: 支出負担行為担当官 鹿児島地方法務局長 野見山 弘幸 （鹿児島県鹿児島市山下町13-10） | D187: 2024-04-01 | E187: 鈴与商事株式会社 静岡県静岡市清水区入船町11-1 | F187: 1080001002318 | G187: 一般競争入札 | H187: 1071560 | I187: 1064060 | J187: =IFERROR(ROUNDDOWN(I187/H187,3),"-") -> 0.993 | K187: 単価契約 共同調達（【第十管区海上保安本部】、鹿児島地方気象台、自衛隊鹿児島地方協力本部、霧島錦江湾国立公園管理事務所、九州公安調査局、九州厚生局鹿児島事務所）ほか11カ所 予定価格総額 67,486,670円 契約金額総額 67,000,874円
A188: 185 | B188: 令和6年度前橋刑務所自家用電気工作物保安管理業務委託契約 | C188: 前橋刑務所支出負担行為担当官代理 前橋刑務所処遇部長 工藤 英男 （群馬県前橋市南町1-23-7） | D188: 2024-04-01 | E188: 株式会社ミツバ環境ソリューションズ 群馬県桐生市広沢町1-2789-1 | F188: 3070001016291 | G188: 一般競争入札 | H188: 1166880 | I188: 1069200 | J188: =IFERROR(ROUNDDOWN(I188/H188,3),"-") -> 0.916 | K188: 単価契約
A189: 186 | B189: 令和6年度甲府刑務所被収容者臨床検査業務委託契約（309項目） | C189: 支出負担行為担当官 甲府刑務所長 萩澤 淳 （山梨県甲府市堀之内町500） | D189: 2024-04-01 | E189: 一般社団法人甲府市医師会 山梨県甲府市丸の内2-37-7 | F189: 8090005000145 | G189: 一般競争入札 | H189: 1071620 | I189: 1071620 | J189: =IFERROR(ROUNDDOWN(I189/H189,3),"-") -> 1 | K189: 単価契約
A190: 187 | B190: 一般廃棄物収集運搬業務委託 | C190: 支出負担行為担当官 麓刑務所長 宮崎 勝也 （佐賀県鳥栖市山浦町2635） | D190: 2024-04-01 | E190: 有限会社ウラカワ 佐賀県鳥栖市山浦町2959-59 | F190: 8300002009035 | G190: 一般競争入札 | H190: 1073250 | I190: 1073250 | J190: =IFERROR(ROUNDDOWN(I190/H190,3),"-") -> 1 | K190: 単価契約
A191: 188 | B191: 令和6年度松本少年刑務所コニカミノルタ製複合型複写機保守契約 | C191: 支出負担行為担当官 松本少年刑務所長 中道 徹 （長野県松本市桐3-9-4） | D191: 2024-04-01 | E191: コニカミノルタジャパン株式会社 東京都港区芝浦1-1-1 | F191: 9013401005070 | G191: 一般競争入札 | H191: 1220248 | I191: 1074502 | J191: =IFERROR(ROUNDDOWN(I191/H191,3),"-") -> 0.88 | K191: 単価契約
A192: 189 | B192: 令和6年度自家用工作物保安管理業務委託契約 | C192: 支出負担行為担当官 甲府刑務所長 萩澤 淳 （山梨県甲府市堀之内町500） | D192: 2024-04-01 | E192: 一般財団法人関東電気保安協会 東京都港区芝浦4-13-23 | F192: 8013305001704 | G192: 一般競争入札 | H192: 1085040 | I192: 1085040 | J192: =IFERROR(ROUNDDOWN(I192/H192,3),"-") -> 1
A193: 190 | B193: 東京出入国在留管理局羽田空港支局におけるターミナル間荷物運搬業務委託契約 | C193: 支出負担行為担当官 東京出入国在留管理局長 宮尾 芳彰 （東京都港区港南5-5-30） | D193: 2024-04-01 | E193: 株式会社丸運京浜ターミナル営業所 東京都大田区平和島2-2-1 | F193: 5010001141787 | G193: 一般競争入札 | H193: 1256145 | I193: 1092300 | J193: =IFERROR(ROUNDDOWN(I193/H193,3),"-") -> 0.869 | K193: 単価契約
A194: 191 | B194: 千葉地方検察庁自動車賃貸借（レンタカー） | C194: 支出負担行為担当官 千葉地方検察庁検事正 長谷川 保 （千葉県千葉市中央区中央4-11-1） | D194: 2024-04-01 | E194: 株式会社トヨタレンタリース千葉 千葉県千葉市美浜区新港57 | F194: 3040001005537 | G194: 一般競争入札 | H194: 1110464 | I194: 1094500 | J194: =IFERROR(ROUNDDOWN(I194/H194,3),"-") -> 0.985 | K194: 単価契約
A195: 192 | B195: 歳入金の警備輸送等業務請負契約 | C195: 支出負担行為担当官 仙台地方検察庁検事正 石山 宏樹 （宮城県仙台市青葉区片平1-3-1） | D195: 2024-04-01 | E195: NXキャッシュ・ロジスティクス株式会社東北支店 宮城県仙台市若林区卸町2-1-11 | F195: 5010001223230 | G195: 一般競争入札 | H195: 1245200 | I195: 1095600 | J195: =IFERROR(ROUNDDOWN(I195/H195,3),"-") -> 0.879
A196: 193 | B196: 職員及び被収容者の健康診断業務委託 | C196: 支出負担行為担当官 麓刑務所長 宮崎 勝也 （佐賀県鳥栖市山浦町2635） | D196: 2024-04-01 | E196: 医療法人社団如水会今村病院 佐賀県鳥栖市轟木町1523-6 | F196: 2300005004550 | G196: 一般競争入札 | H196: 1156000 | I196: 1097500 | J196: =IFERROR(ROUNDDOWN(I196/H196,3),"-") -> 0.949 | K196: 単価契約
A197: 194 | B197: 令和6年度昇降機設備保守点検業務委託契約 | C197: 支出負担行為担当官代理 山形刑務所総務部長 松尾 康弘 （山形県山形市あけぼの2-1-1） | D197: 2024-04-01 | E197: アクア株式会社 新潟県長岡市石動南町42-7 | F197: 4110001025980 | G197: 一般競争入札 | H197: 2171400 | I197: 1097712 | J197: =IFERROR(ROUNDDOWN(I197/H197,3),"-") -> 0.505
A198: 195 | B198: 令和6年度横浜刑務所エレベーター（5台）及び小荷物昇降機（19台）保守業務委託契約 | C198: 支出負担行為担当官 横浜刑務所長 小嶌 一平 （神奈川県横浜市港南区港南4-2-2） | D198: 2024-04-01 | E198: ジャパンエレベーターサービス神奈川株式会社 神奈川県横浜市神奈川区鶴屋町3-33-8 | F198: 9020001109160 | G198: 一般競争入札 | H198: 1174059 | I198: 1099560 | J198: =IFERROR(ROUNDDOWN(I198/H198,3),"-") -> 0.936
A199: 196 | B199: 令和6年度東北公安調査局における自動車用燃料の供給、洗車業務及びタイヤの脱着業務に係る単価契約 | C199: 支出負担行為担当官 東北公安調査局長 下石畑 厚 （宮城県仙台市青葉区春日町7-25） | D199: 2024-04-01 | E199: 宝フリート株式会社 宮城県仙台市青葉区立町1-1 | F199: 8390001004441 | G199: 一般競争入札 | H199: 1236136 | I199: 1099780 | J199: =IFERROR(ROUNDDOWN(I199/H199,3),"-") -> 0.889 | K199: 単価契約
A200: 197 | B200: 前橋法務総合庁舎等樹木剪定等業務委託 | C200: 支出負担行為担当官 前橋地方検察庁検事正 坂本 佳胤 （群馬県前橋市大手町3-2-1） | D200: 2024-04-01 | E200: 株式会社グリーンウェイブ 群馬県前橋市下新田町460-54 | F200: 6070001032071 | G200: 一般競争入札 | H200: 1423125 | I200: 1100000 | J200: =IFERROR(ROUNDDOWN(I200/H200,3),"-") -> 0.772 | K200: 一括調達（関東地方更生保護委員会、前橋刑務所、東京出入国在留管理局、関東公安調査局）
... 2427 more rows
